{"text_format":"1","workbook":"xlsx","n_sheets":15,"sheets":["يناير","فبراير","مارس","إبريل","مايو","يونيو","يوليو","أغسطس","سبتمبر","أكتوبر","نوفمبر","ديسمبر","2022","حصر الأنشطة","Programming Data"],"not_rendered":{"charts":0,"images":0,"macros":1,"external_links":0,"defined_names":0,"comments":0,"pivot_tables":0},"unopened":[],"bounds":{"document_bytes":16777216,"sheet_cells":100000,"rows_first":2000,"rows_last":500,"rows_between":2000,"halvings":0,"cell_chars":16384,"cell_head_chars":4096},"cells_cut":0,"cells_raw":0,"read":"whole","date_system":"1900"}

{"sheet":"يناير","index":0,"n_rows":102,"n_cols":16,"rows_kept":102,"cut":false,"hidden":false,"merged":[[0,0,1,6],[2,11,2,12],[1,10,2,10]]}
["أنشطة شهر يناير 2022",null,null,null,null,null,null," "]
[null,null,null,null,null,null,null,null,null,null,"عودة"]
["اليوم","التاريخ","النشـــــــــــــــــــــــــاط","المنظم","من","إلى","القاعة","التكرار",null,null,null,"بيان بعدد الأنشطة شهريًا"]
[{"$f":"IF(B4=\"\",\"\",TEXT(B4,\"dddd\"))","v":""},null,null,null,null,null,null,{"$f":"COUNTIFS(G:G,G4,F:F,F4,E:E,E4,B:B,B4)","v":0},null,null,null,"القاعة","عدد الأنشطة",null,null,"اجتماع"]
["",null,null,null,null,null,null,0,null,null,null,"الندوات",{"$f":"IFERROR(COUNTIF($G$4:G100,L5),\"\")","v":0}]
["",null,null,null,null,null,null,0,null,null,null,"مقرري اللجان",0]
["",null,null,null,null,null,null,0,null,null,null,"الآداب",0]
["",null,null,null,null,null,null,0,null,null,null,"العلوم الاجتماعية",{"$f":"IFERROR(COUNTIF($G$4:G102,L8),\"\")","v":0}]
["",null,null,null,null,null,null,0,null,null,null,"القاعة العامة",{"$f":"IFERROR(COUNTIF($G$4:G102,L9),\"\")","v":0}]
["",null,null,null,null,null,null,0,null,null,null,"المؤتمرات",{"$f":"IFERROR(COUNTIF($G$4:G102,L10),\"\")","v":0}]
["",null,null,null,null,null,null,0,null,null,null,"المجلس",{"$f":"IFERROR(COUNTIF($G$4:G102,L11),\"\")","v":0}]
["",null,null,null,null,null,null,0,null,null,null,"الفنون",{"$f":"IFERROR(COUNTIF($G$4:G102,L12),\"\")","v":0}]
["",null,null,null,null,null,null,0,null,null,null,"كل القاعات",{"$f":"IFERROR(COUNTIF($G$4:G102,L13),\"\")","v":0}]
["",null,null,null,null,null,null,0,null,null,null,"أونلاين",{"$f":"IFERROR(COUNTIF($G$4:G102,L14),\"\")","v":0}]
["",null,null,null,null,null,null,0,null,null,null,"أنشطة خارجية",{"$f":"COUNTA($G$4:G102)-SUM($M$5:$M$14)","v":0}]
["",null,null,null,null,null,null,0,null,null,null,"إجمالى عدد الأنشطة",{"$f":"SUM(M6:M15)","v":0}]
["",null,null,null,null,null,null,0,null,null,null,"عدد الاجتماعات ",{"$f":"IFERROR(COUNTIF($C$4:$C$102,P4),\"\")","v":0}]
["",null,null,null,null,null,null,0]
["",null,null,null,null,null,null,0]
["",null,null,null,null,null,null,0]
["",null,null,null,null,null,null,0]
["",null,null,null,null,null,null,0]
["",null,null,null,null,null,null,0]
["",null,null,null,null,null,null,0]
["",null,null,null,null,null,null,0]
["",null,null,null,null,null,null,0]
["",null,null,null,null,null,null,0]
["",null,null,null,null,null,null,0]
["",null,null,null,null,null,null,0]
["",null,null,null,null,null,null,0]
["",null,null,null,null,null,null,0]
["",null,null,null,null,null,null,0]
["",null,null,null,null,null,null,0]
["",null,null,null,null,null,null,0]
["",null,null,null,null,null,null,0]
["",null,null,null,null,null,null,0]
["",null,null,null,null,null,null,0]
["",null,null,null,null,null,null,0]
["",null,null,null,null,null,null,0,null,"الندوات"]
["",null,null,null,null,null,null,0,null,"مقرري اللجان"]
["",null,null,null,null,null,null,0,null,"الآداب"]
["",null,null,null,null,null,null,0,null,"العلوم الاجتماعية"]
["",null,null,null,null,null,null,0,null,"القاعة العامة"]
["",null,null,null,null,null,null,0,null,"المؤتمرات"]
["",null,null,null,null,null,null,0,null,"المجلس"]
["",null,null,null,null,null,null,0,null,"الفنون"]
["",null,null,null,null,null,null,0,null,"كل القاعات"]
["",null,null,null,null,null,null,0,null,"أونلاين"]
["",null,null,null,null,null,null,0,null,"نشاط خارجي"]
["",null,null,null,null,null,null,0]
["",null,null,null,null,null,null,0]
["",null,null,null,null,null,null,0]
["",null,null,null,null,null,null,0]
["",null,null,null,null,null,null,0]
["",null,null,null,null,null,null,0]
["",null,null,null,null,null,null,0]
["",null,null,null,null,null,null,0]
["",null,null,null,null,null,null,0]
["",null,null,null,null,null,null,0]
["",null,null,null,null,null,null,0]
["",null,null,null,null,null,null,0]
["",null,null,null,null,null,null,0]
["",null,null,null,null,null,null,0]
["",null,null,null,null,null,null,0]
["",null,null,null,null,null,null,0]
["",null,null,null,null,null,null,0]
["",null,null,null,null,null,null,0]
["",null,null,null,null,null,null,0]
["",null,null,null,null,null,null,0]
["",null,null,null,null,null,null,0]
["",null,null,null,null,null,null,0]
["",null,null,null,null,null,null,0]
["",null,null,null,null,null,null,0]
["",null,null,null,null,null,null,0]
["",null,null,null,null,null,null,0]
["",null,null,null,null,null,null,0]
["",null,null,null,null,null,null,0]
["",null,null,null,null,null,null,0]
["",null,null,null,null,null,null,0]
["",null,null,null,null,null,null,0]
["",null,null,null,null,null,null,0]
["",null,null,null,null,null,null,0]
["",null,null,null,null,null,null,0]
["",null,null,null,null,null,null,0]
["",null,null,null,null,null,null,0]
["",null,null,null,null,null,null,0]
["",null,null,null,null,null,null,0]
["",null,null,null,null,null,null,0]
["",null,null,null,null,null,null,0]
["",null,null,null,null,null,null,0]
["",null,null,null,null,null,null,0]
["",null,null,null,null,null,null,0]
["",null,null,null,null,null,null,0]
["",null,null,null,null,null,null,0]
["",null,null,null,null,null,null,0]
["",null,null,null,null,null,null,0]
["",null,null,null,null,null,null,0]
["",null,null,null,null,null,null,0]
["",null,null,null,null,null,null,0]
["",null,null,null,null,null,null,0]
[]
[null,null,null,null,null,null,null,null,null,"الندوات"]

{"sheet":"فبراير","index":1,"n_rows":102,"n_cols":16,"rows_kept":102,"cut":false,"hidden":false,"merged":[[0,0,1,6],[2,11,2,12],[1,10,2,10]]}
["أنشطة شهر فبراير 2022",null,null,null,null,null,null," "]
[null,null,null,null,null,null,null,null,null,null,"عودة"]
["اليوم","التاريخ","النشـــــــــــــــــــــــــاط","المنظم","من","إلى","القاعة","التكرار",null,null,null,"بيان بعدد الأنشطة شهريًا"]
[{"$f":"IF(B4=\"\",\"\",TEXT(B4,\"dddd\"))","v":""},null,null,null,null,null,null,{"$f":"COUNTIFS(G:G,G4,F:F,F4,E:E,E4,B:B,B4)","v":0},null,null,null,"القاعة","عدد الأنشطة",null,null,"اجتماع"]
["",null,null,null,null,null,null,0,null,null,null,"الندوات",{"$f":"IFERROR(COUNTIF($G$4:G100,L5),\"\")","v":0}]
["",null,null,null,null,null,null,0,null,null,null,"مقرري اللجان",0]
["",null,null,null,null,null,null,0,null,null,null,"الآداب",0]
["",null,null,null,null,null,null,0,null,null,null,"العلوم الاجتماعية",{"$f":"IFERROR(COUNTIF($G$4:G102,L8),\"\")","v":0}]
["",null,null,null,null,null,null,0,null,null,null,"القاعة العامة",{"$f":"IFERROR(COUNTIF($G$4:G102,L9),\"\")","v":0}]
["",null,null,null,null,null,null,0,null,null,null,"المؤتمرات",{"$f":"IFERROR(COUNTIF($G$4:G102,L10),\"\")","v":0}]
["",null,null,null,null,null,null,0,null,null,null,"المجلس",{"$f":"IFERROR(COUNTIF($G$4:G102,L11),\"\")","v":0}]
["",null,null,null,null,null,null,0,null,null,null,"الفنون",{"$f":"IFERROR(COUNTIF($G$4:G102,L12),\"\")","v":0}]
["",null,null,null,null,null,null,0,null,null,null,"كل القاعات",{"$f":"IFERROR(COUNTIF($G$4:G102,L13),\"\")","v":0}]
["",null,null,null,null,null,null,0,null,null,null,"أونلاين",{"$f":"IFERROR(COUNTIF($G$4:G102,L14),\"\")","v":0}]
["",null,null,null,null,null,null,0,null,null,null,"أنشطة خارجية",{"$f":"COUNTA($G$4:G102)-SUM($M$5:$M$14)","v":0}]
["",null,null,null,null,null,null,0,null,null,null,"إجمالى عدد الأنشطة",{"$f":"SUM(M6:M15)","v":0}]
["",null,null,null,null,null,null,0,null,null,null,"عدد الاجتماعات ",{"$f":"IFERROR(COUNTIF($C$4:$C$102,P4),\"\")","v":0}]
["",null,null,null,null,null,null,0]
["",null,null,null,null,null,null,0]
["",null,null,null,null,null,null,0]
["",null,null,null,null,null,null,0]
["",null,null,null,null,null,null,0]
["",null,null,null,null,null,null,0]
["",null,null,null,null,null,null,0]
["",null,null,null,null,null,null,0]
["",null,null,null,null,null,null,0]
["",null,null,null,null,null,null,0]
["",null,null,null,null,null,null,0]
["",null,null,null,null,null,null,0]
["",null,null,null,null,null,null,0]
["",null,null,null,null,null,null,0]
["",null,null,null,null,null,null,0]
["",null,null,null,null,null,null,0]
["",null,null,null,null,null,null,0]
["",null,null,null,null,null,null,0]
["",null,null,null,null,null,null,0]
["",null,null,null,null,null,null,0]
["",null,null,null,null,null,null,0]
["",null,null,null,null,null,null,0,null,"الندوات"]
["",null,null,null,null,null,null,0,null,"مقرري اللجان"]
["",null,null,null,null,null,null,0,null,"الآداب"]
["",null,null,null,null,null,null,0,null,"العلوم الاجتماعية"]
["",null,null,null,null,null,null,0,null,"القاعة العامة"]
["",null,null,null,null,null,null,0,null,"المؤتمرات"]
["",null,null,null,null,null,null,0,null,"المجلس"]
["",null,null,null,null,null,null,0,null,"الفنون"]
["",null,null,null,null,null,null,0,null,"كل القاعات"]
["",null,null,null,null,null,null,0,null,"أونلاين"]
["",null,null,null,null,null,null,0,null,"نشاط خارجي"]
["",null,null,null,null,null,null,0]
["",null,null,null,null,null,null,0]
["",null,null,null,null,null,null,0]
["",null,null,null,null,null,null,0]
["",null,null,null,null,null,null,0]
["",null,null,null,null,null,null,0]
["",null,null,null,null,null,null,0]
["",null,null,null,null,null,null,0]
["",null,null,null,null,null,null,0]
["",null,null,null,null,null,null,0]
["",null,null,null,null,null,null,0]
["",null,null,null,null,null,null,0]
["",null,null,null,null,null,null,0]
["",null,null,null,null,null,null,0]
["",null,null,null,null,null,null,0]
["",null,null,null,null,null,null,0]
["",null,null,null,null,null,null,0]
["",null,null,null,null,null,null,0]
["",null,null,null,null,null,null,0]
["",null,null,null,null,null,null,0]
["",null,null,null,null,null,null,0]
["",null,null,null,null,null,null,0]
["",null,null,null,null,null,null,0]
["",null,null,null,null,null,null,0]
["",null,null,null,null,null,null,0]
["",null,null,null,null,null,null,0]
["",null,null,null,null,null,null,0]
["",null,null,null,null,null,null,0]
["",null,null,null,null,null,null,0]
["",null,null,null,null,null,null,0]
["",null,null,null,null,null,null,0]
["",null,null,null,null,null,null,0]
["",null,null,null,null,null,null,0]
["",null,null,null,null,null,null,0]
["",null,null,null,null,null,null,0]
["",null,null,null,null,null,null,0]
["",null,null,null,null,null,null,0]
["",null,null,null,null,null,null,0]
["",null,null,null,null,null,null,0]
["",null,null,null,null,null,null,0]
["",null,null,null,null,null,null,0]
["",null,null,null,null,null,null,0]
["",null,null,null,null,null,null,0]
["",null,null,null,null,null,null,0]
["",null,null,null,null,null,null,0]
["",null,null,null,null,null,null,0]
["",null,null,null,null,null,null,0]
["",null,null,null,null,null,null,0]
["",null,null,null,null,null,null,0]
["",null,null,null,null,null,null,0]
["",null,null,null,null,null,null,0]
[]
[null,null,null,null,null,null,null,null,null,"الندوات"]

{"sheet":"مارس","index":2,"n_rows":102,"n_cols":16,"rows_kept":102,"cut":false,"hidden":false,"merged":[[0,0,1,6],[2,11,2,12],[1,10,2,10]]}
["أنشطة شهر مارس 2022",null,null,null,null,null,null," "]
[null,null,null,null,null,null,null,null,null,null,"عودة"]
["اليوم","التاريخ","النشـــــــــــــــــــــــــاط","المنظم","من","إلى","القاعة","التكرار",null,null,null,"بيان بعدد الأنشطة شهريًا"]
[{"$f":"IF(B4=\"\",\"\",TEXT(B4,\"dddd\"))","v":""},null,null,null,null,null,null,{"$f":"COUNTIFS(G:G,G4,F:F,F4,E:E,E4,B:B,B4)","v":0},null,null,null,"القاعة","عدد الأنشطة",null,null,"اجتماع"]
["",null,null,null,null,null,null,0,null,null,null,"الندوات",{"$f":"IFERROR(COUNTIF($G$4:G100,L5),\"\")","v":0}]
["",null,null,null,null,null,null,0,null,null,null,"مقرري اللجان",0]
["",null,null,null,null,null,null,0,null,null,null,"الآداب",0]
["",null,null,null,null,null,null,0,null,null,null,"العلوم الاجتماعية",{"$f":"IFERROR(COUNTIF($G$4:G102,L8),\"\")","v":0}]
["",null,null,null,null,null,null,0,null,null,null,"القاعة العامة",{"$f":"IFERROR(COUNTIF($G$4:G102,L9),\"\")","v":0}]
["",null,null,null,null,null,null,0,null,null,null,"المؤتمرات",{"$f":"IFERROR(COUNTIF($G$4:G102,L10),\"\")","v":0}]
["",null,null,null,null,null,null,0,null,null,null,"المجلس",{"$f":"IFERROR(COUNTIF($G$4:G102,L11),\"\")","v":0}]
["",null,null,null,null,null,null,0,null,null,null,"الفنون",{"$f":"IFERROR(COUNTIF($G$4:G102,L12),\"\")","v":0}]
["",null,null,null,null,null,null,0,null,null,null,"كل القاعات",{"$f":"IFERROR(COUNTIF($G$4:G102,L13),\"\")","v":0}]
["",null,null,null,null,null,null,0,null,null,null,"أونلاين",{"$f":"IFERROR(COUNTIF($G$4:G102,L14),\"\")","v":0}]
["",null,null,null,null,null,null,0,null,null,null,"أنشطة خارجية",{"$f":"COUNTA($G$4:G102)-SUM($M$5:$M$14)","v":0}]
["",null,null,null,null,null,null,0,null,null,null,"إجمالى عدد الأنشطة",{"$f":"SUM(M6:M15)","v":0}]
["",null,null,null,null,null,null,0,null,null,null,"عدد الاجتماعات ",{"$f":"IFERROR(COUNTIF($C$4:$C$102,P4),\"\")","v":0}]
["",null,null,null,null,null,null,0]
["",null,null,null,null,null,null,0]
["",null,null,null,null,null,null,0]
["",null,null,null,null,null,null,0]
["",null,null,null,null,null,null,0]
["",null,null,null,null,null,null,0]
["",null,null,null,null,null,null,0]
["",null,null,null,null,null,null,0]
["",null,null,null,null,null,null,0]
["",null,null,null,null,null,null,0]
["",null,null,null,null,null,null,0]
["",null,null,null,null,null,null,0]
["",null,null,null,null,null,null,0]
["",null,null,null,null,null,null,0]
["",null,null,null,null,null,null,0]
["",null,null,null,null,null,null,0]
["",null,null,null,null,null,null,0]
["",null,null,null,null,null,null,0]
["",null,null,null,null,null,null,0]
["",null,null,null,null,null,null,0]
["",null,null,null,null,null,null,0]
["",null,null,null,null,null,null,0,null,"الندوات"]
["",null,null,null,null,null,null,0,null,"مقرري اللجان"]
["",null,null,null,null,null,null,0,null,"الآداب"]
["",null,null,null,null,null,null,0,null,"العلوم الاجتماعية"]
["",null,null,null,null,null,null,0,null,"القاعة العامة"]
["",null,null,null,null,null,null,0,null,"المؤتمرات"]
["",null,null,null,null,null,null,0,null,"المجلس"]
["",null,null,null,null,null,null,0,null,"الفنون"]
["",null,null,null,null,null,null,0,null,"كل القاعات"]
["",null,null,null,null,null,null,0,null,"أونلاين"]
["",null,null,null,null,null,null,0,null,"نشاط خارجي"]
["",null,null,null,null,null,null,0]
["",null,null,null,null,null,null,0]
["",null,null,null,null,null,null,0]
["",null,null,null,null,null,null,0]
["",null,null,null,null,null,null,0]
["",null,null,null,null,null,null,0]
["",null,null,null,null,null,null,0]
["",null,null,null,null,null,null,0]
["",null,null,null,null,null,null,0]
["",null,null,null,null,null,null,0]
["",null,null,null,null,null,null,0]
["",null,null,null,null,null,null,0]
["",null,null,null,null,null,null,0]
["",null,null,null,null,null,null,0]
["",null,null,null,null,null,null,0]
["",null,null,null,null,null,null,0]
["",null,null,null,null,null,null,0]
["",null,null,null,null,null,null,0]
["",null,null,null,null,null,null,0]
["",null,null,null,null,null,null,0]
["",null,null,null,null,null,null,0]
["",null,null,null,null,null,null,0]
["",null,null,null,null,null,null,0]
["",null,null,null,null,null,null,0]
["",null,null,null,null,null,null,0]
["",null,null,null,null,null,null,0]
["",null,null,null,null,null,null,0]
["",null,null,null,null,null,null,0]
["",null,null,null,null,null,null,0]
["",null,null,null,null,null,null,0]
["",null,null,null,null,null,null,0]
["",null,null,null,null,null,null,0]
["",null,null,null,null,null,null,0]
["",null,null,null,null,null,null,0]
["",null,null,null,null,null,null,0]
["",null,null,null,null,null,null,0]
["",null,null,null,null,null,null,0]
["",null,null,null,null,null,null,0]
["",null,null,null,null,null,null,0]
["",null,null,null,null,null,null,0]
["",null,null,null,null,null,null,0]
["",null,null,null,null,null,null,0]
["",null,null,null,null,null,null,0]
["",null,null,null,null,null,null,0]
["",null,null,null,null,null,null,0]
["",null,null,null,null,null,null,0]
["",null,null,null,null,null,null,0]
["",null,null,null,null,null,null,0]
["",null,null,null,null,null,null,0]
["",null,null,null,null,null,null,0]
["",null,null,null,null,null,null,0]
[]
[null,null,null,null,null,null,null,null,null,"الندوات"]

{"sheet":"إبريل","index":3,"n_rows":102,"n_cols":16,"rows_kept":102,"cut":false,"hidden":false,"merged":[[0,0,1,6],[2,11,2,12],[1,10,2,10]]}
["أنشطة شهر إبريل 2022",null,null,null,null,null,null," "]
[null,null,null,null,null,null,null,null,null,null,"عودة"]
["اليوم","التاريخ","النشـــــــــــــــــــــــــاط","المنظم","من","إلى","القاعة","التكرار",null,null,null,"بيان بعدد الأنشطة شهريًا"]
[{"$f":"IF(B4=\"\",\"\",TEXT(B4,\"dddd\"))","v":""},null,null,null,null,null,null,{"$f":"COUNTIFS(G:G,G4,F:F,F4,E:E,E4,B:B,B4)","v":0},null,null,null,"القاعة","عدد الأنشطة",null,null,"اجتماع"]
["",null,null,null,null,null,null,0,null,null,null,"الندوات",{"$f":"IFERROR(COUNTIF($G$4:G100,L5),\"\")","v":0}]
["",null,null,null,null,null,null,0,null,null,null,"مقرري اللجان",0]
["",null,null,null,null,null,null,0,null,null,null,"الآداب",0]
["",null,null,null,null,null,null,0,null,null,null,"العلوم الاجتماعية",{"$f":"IFERROR(COUNTIF($G$4:G102,L8),\"\")","v":0}]
["",null,null,null,null,null,null,0,null,null,null,"القاعة العامة",{"$f":"IFERROR(COUNTIF($G$4:G102,L9),\"\")","v":0}]
["",null,null,null,null,null,null,0,null,null,null,"المؤتمرات",{"$f":"IFERROR(COUNTIF($G$4:G102,L10),\"\")","v":0}]
["",null,null,null,null,null,null,0,null,null,null,"المجلس",{"$f":"IFERROR(COUNTIF($G$4:G102,L11),\"\")","v":0}]
["",null,null,null,null,null,null,0,null,null,null,"الفنون",{"$f":"IFERROR(COUNTIF($G$4:G102,L12),\"\")","v":0}]
["",null,null,null,null,null,null,0,null,null,null,"كل القاعات",{"$f":"IFERROR(COUNTIF($G$4:G102,L13),\"\")","v":0}]
["",null,null,null,null,null,null,0,null,null,null,"أونلاين",{"$f":"IFERROR(COUNTIF($G$4:G102,L14),\"\")","v":0}]
["",null,null,null,null,null,null,0,null,null,null,"أنشطة خارجية",{"$f":"COUNTA($G$4:G102)-SUM($M$5:$M$14)","v":0}]
["",null,null,null,null,null,null,0,null,null,null,"إجمالى عدد الأنشطة",{"$f":"SUM(M6:M15)","v":0}]
["",null,null,null,null,null,null,0,null,null,null,"عدد الاجتماعات ",{"$f":"IFERROR(COUNTIF($C$4:$C$102,P4),\"\")","v":0}]
["",null,null,null,null,null,null,0]
["",null,null,null,null,null,null,0]
["",null,null,null,null,null,null,0]
["",null,null,null,null,null,null,0]
["",null,null,null,null,null,null,0]
["",null,null,null,null,null,null,0]
["",null,null,null,null,null,null,0]
["",null,null,null,null,null,null,0]
["",null,null,null,null,null,null,0]
["",null,null,null,null,null,null,0]
["",null,null,null,null,null,null,0]
["",null,null,null,null,null,null,0]
["",null,null,null,null,null,null,0]
["",null,null,null,null,null,null,0]
["",null,null,null,null,null,null,0]
["",null,null,null,null,null,null,0]
["",null,null,null,null,null,null,0]
["",null,null,null,null,null,null,0]
["",null,null,null,null,null,null,0]
["",null,null,null,null,null,null,0]
["",null,null,null,null,null,null,0]
["",null,null,null,null,null,null,0,null,"الندوات"]
["",null,null,null,null,null,null,0,null,"مقرري اللجان"]
["",null,null,null,null,null,null,0,null,"الآداب"]
["",null,null,null,null,null,null,0,null,"العلوم الاجتماعية"]
["",null,null,null,null,null,null,0,null,"القاعة العامة"]
["",null,null,null,null,null,null,0,null,"المؤتمرات"]
["",null,null,null,null,null,null,0,null,"المجلس"]
["",null,null,null,null,null,null,0,null,"الفنون"]
["",null,null,null,null,null,null,0,null,"كل القاعات"]
["",null,null,null,null,null,null,0,null,"أونلاين"]
["",null,null,null,null,null,null,0,null,"نشاط خارجي"]
["",null,null,null,null,null,null,0]
["",null,null,null,null,null,null,0]
["",null,null,null,null,null,null,0]
["",null,null,null,null,null,null,0]
["",null,null,null,null,null,null,0]
["",null,null,null,null,null,null,0]
["",null,null,null,null,null,null,0]
["",null,null,null,null,null,null,0]
["",null,null,null,null,null,null,0]
["",null,null,null,null,null,null,0]
["",null,null,null,null,null,null,0]
["",null,null,null,null,null,null,0]
["",null,null,null,null,null,null,0]
["",null,null,null,null,null,null,0]
["",null,null,null,null,null,null,0]
["",null,null,null,null,null,null,0]
["",null,null,null,null,null,null,0]
["",null,null,null,null,null,null,0]
["",null,null,null,null,null,null,0]
["",null,null,null,null,null,null,0]
["",null,null,null,null,null,null,0]
["",null,null,null,null,null,null,0]
["",null,null,null,null,null,null,0]
["",null,null,null,null,null,null,0]
["",null,null,null,null,null,null,0]
["",null,null,null,null,null,null,0]
["",null,null,null,null,null,null,0]
["",null,null,null,null,null,null,0]
["",null,null,null,null,null,null,0]
["",null,null,null,null,null,null,0]
["",null,null,null,null,null,null,0]
["",null,null,null,null,null,null,0]
["",null,null,null,null,null,null,0]
["",null,null,null,null,null,null,0]
["",null,null,null,null,null,null,0]
["",null,null,null,null,null,null,0]
["",null,null,null,null,null,null,0]
["",null,null,null,null,null,null,0]
["",null,null,null,null,null,null,0]
["",null,null,null,null,null,null,0]
["",null,null,null,null,null,null,0]
["",null,null,null,null,null,null,0]
["",null,null,null,null,null,null,0]
["",null,null,null,null,null,null,0]
["",null,null,null,null,null,null,0]
["",null,null,null,null,null,null,0]
["",null,null,null,null,null,null,0]
["",null,null,null,null,null,null,0]
["",null,null,null,null,null,null,0]
["",null,null,null,null,null,null,0]
["",null,null,null,null,null,null,0]
[]
[null,null,null,null,null,null,null,null,null,"الندوات"]

{"sheet":"مايو","index":4,"n_rows":102,"n_cols":16,"rows_kept":102,"cut":false,"hidden":false,"merged":[[0,0,1,6],[2,11,2,12],[1,10,2,10]]}
["أنشطة شهر مايو 2022",null,null,null,null,null,null," "]
[null,null,null,null,null,null,null,null,null,null,"عودة"]
["اليوم","التاريخ","النشـــــــــــــــــــــــــاط","المنظم","من","إلى","القاعة","التكرار",null,null,null,"بيان بعدد الأنشطة شهريًا"]
[{"$f":"IF(B4=\"\",\"\",TEXT(B4,\"dddd\"))","v":""},null,null,null,null,null,null,{"$f":"COUNTIFS(G:G,G4,F:F,F4,E:E,E4,B:B,B4)","v":0},null,null,null,"القاعة","عدد الأنشطة",null,null,"اجتماع"]
["",null,null,null,null,null,null,0,null,null,null,"الندوات",{"$f":"IFERROR(COUNTIF($G$4:G100,L5),\"\")","v":0}]
["",null,null,null,null,null,null,0,null,null,null,"مقرري اللجان",0]
["",null,null,null,null,null,null,0,null,null,null,"الآداب",0]
["",null,null,null,null,null,null,0,null,null,null,"العلوم الاجتماعية",{"$f":"IFERROR(COUNTIF($G$4:G102,L8),\"\")","v":0}]
["",null,null,null,null,null,null,0,null,null,null,"القاعة العامة",{"$f":"IFERROR(COUNTIF($G$4:G102,L9),\"\")","v":0}]
["",null,null,null,null,null,null,0,null,null,null,"المؤتمرات",{"$f":"IFERROR(COUNTIF($G$4:G102,L10),\"\")","v":0}]
["",null,null,null,null,null,null,0,null,null,null,"المجلس",{"$f":"IFERROR(COUNTIF($G$4:G102,L11),\"\")","v":0}]
["",null,null,null,null,null,null,0,null,null,null,"الفنون",{"$f":"IFERROR(COUNTIF($G$4:G102,L12),\"\")","v":0}]
["",null,null,null,null,null,null,0,null,null,null,"كل القاعات",{"$f":"IFERROR(COUNTIF($G$4:G102,L13),\"\")","v":0}]
["",null,null,null,null,null,null,0,null,null,null,"أونلاين",{"$f":"IFERROR(COUNTIF($G$4:G102,L14),\"\")","v":0}]
["",null,null,null,null,null,null,0,null,null,null,"أنشطة خارجية",{"$f":"COUNTA($G$4:G102)-SUM($M$5:$M$14)","v":0}]
["",null,null,null,null,null,null,0,null,null,null,"إجمالى عدد الأنشطة",{"$f":"SUM(M6:M15)","v":0}]
["",null,null,null,null,null,null,0,null,null,null,"عدد الاجتماعات ",{"$f":"IFERROR(COUNTIF($C$4:$C$102,P4),\"\")","v":0}]
["",null,null,null,null,null,null,0]
["",null,null,null,null,null,null,0]
["",null,null,null,null,null,null,0]
["",null,null,null,null,null,null,0]
["",null,null,null,null,null,null,0]
["",null,null,null,null,null,null,0]
["",null,null,null,null,null,null,0]
["",null,null,null,null,null,null,0]
["",null,null,null,null,null,null,0]
["",null,null,null,null,null,null,0]
["",null,null,null,null,null,null,0]
["",null,null,null,null,null,null,0]
["",null,null,null,null,null,null,0]
["",null,null,null,null,null,null,0]
["",null,null,null,null,null,null,0]
["",null,null,null,null,null,null,0]
["",null,null,null,null,null,null,0]
["",null,null,null,null,null,null,0]
["",null,null,null,null,null,null,0]
["",null,null,null,null,null,null,0]
["",null,null,null,null,null,null,0]
["",null,null,null,null,null,null,0,null,"الندوات"]
["",null,null,null,null,null,null,0,null,"مقرري اللجان"]
["",null,null,null,null,null,null,0,null,"الآداب"]
["",null,null,null,null,null,null,0,null,"العلوم الاجتماعية"]
["",null,null,null,null,null,null,0,null,"القاعة العامة"]
["",null,null,null,null,null,null,0,null,"المؤتمرات"]
["",null,null,null,null,null,null,0,null,"المجلس"]
["",null,null,null,null,null,null,0,null,"الفنون"]
["",null,null,null,null,null,null,0,null,"كل القاعات"]
["",null,null,null,null,null,null,0,null,"أونلاين"]
["",null,null,null,null,null,null,0,null,"نشاط خارجي"]
["",null,null,null,null,null,null,0]
["",null,null,null,null,null,null,0]
["",null,null,null,null,null,null,0]
["",null,null,null,null,null,null,0]
["",null,null,null,null,null,null,0]
["",null,null,null,null,null,null,0]
["",null,null,null,null,null,null,0]
["",null,null,null,null,null,null,0]
["",null,null,null,null,null,null,0]
["",null,null,null,null,null,null,0]
["",null,null,null,null,null,null,0]
["",null,null,null,null,null,null,0]
["",null,null,null,null,null,null,0]
["",null,null,null,null,null,null,0]
["",null,null,null,null,null,null,0]
["",null,null,null,null,null,null,0]
["",null,null,null,null,null,null,0]
["",null,null,null,null,null,null,0]
["",null,null,null,null,null,null,0]
["",null,null,null,null,null,null,0]
["",null,null,null,null,null,null,0]
["",null,null,null,null,null,null,0]
["",null,null,null,null,null,null,0]
["",null,null,null,null,null,null,0]
["",null,null,null,null,null,null,0]
["",null,null,null,null,null,null,0]
["",null,null,null,null,null,null,0]
["",null,null,null,null,null,null,0]
["",null,null,null,null,null,null,0]
["",null,null,null,null,null,null,0]
["",null,null,null,null,null,null,0]
["",null,null,null,null,null,null,0]
["",null,null,null,null,null,null,0]
["",null,null,null,null,null,null,0]
["",null,null,null,null,null,null,0]
["",null,null,null,null,null,null,0]
["",null,null,null,null,null,null,0]
["",null,null,null,null,null,null,0]
["",null,null,null,null,null,null,0]
["",null,null,null,null,null,null,0]
["",null,null,null,null,null,null,0]
["",null,null,null,null,null,null,0]
["",null,null,null,null,null,null,0]
["",null,null,null,null,null,null,0]
["",null,null,null,null,null,null,0]
["",null,null,null,null,null,null,0]
["",null,null,null,null,null,null,0]
["",null,null,null,null,null,null,0]
["",null,null,null,null,null,null,0]
["",null,null,null,null,null,null,0]
["",null,null,null,null,null,null,0]
[]
[null,null,null,null,null,null,null,null,null,"الندوات"]

{"sheet":"يونيو","index":5,"n_rows":102,"n_cols":16,"rows_kept":102,"cut":false,"hidden":false,"merged":[[0,0,1,6],[2,11,2,12],[1,10,2,10]]}
["أنشطة شهر يونيو 2022",null,null,null,null,null,null," "]
[null,null,null,null,null,null,null,null,null,null,"عودة"]
["اليوم","التاريخ","النشـــــــــــــــــــــــــاط","المنظم","من","إلى","القاعة","التكرار",null,null,null,"بيان بعدد الأنشطة شهريًا"]
[{"$f":"IF(B4=\"\",\"\",TEXT(B4,\"dddd\"))","v":""},null,null,null,null,null,null,{"$f":"COUNTIFS(G:G,G4,F:F,F4,E:E,E4,B:B,B4)","v":0},null,null,null,"القاعة","عدد الأنشطة",null,null,"اجتماع"]
["",null,null,null,null,null,null,0,null,null,null,"الندوات",{"$f":"IFERROR(COUNTIF($G$4:G100,L5),\"\")","v":0}]
["",null,null,null,null,null,null,0,null,null,null,"مقرري اللجان",0]
["",null,null,null,null,null,null,0,null,null,null,"الآداب",0]
["",null,null,null,null,null,null,0,null,null,null,"العلوم الاجتماعية",{"$f":"IFERROR(COUNTIF($G$4:G102,L8),\"\")","v":0}]
["",null,null,null,null,null,null,0,null,null,null,"القاعة العامة",{"$f":"IFERROR(COUNTIF($G$4:G102,L9),\"\")","v":0}]
["",null,null,null,null,null,null,0,null,null,null,"المؤتمرات",{"$f":"IFERROR(COUNTIF($G$4:G102,L10),\"\")","v":0}]
["",null,null,null,null,null,null,0,null,null,null,"المجلس",{"$f":"IFERROR(COUNTIF($G$4:G102,L11),\"\")","v":0}]
["",null,null,null,null,null,null,0,null,null,null,"الفنون",{"$f":"IFERROR(COUNTIF($G$4:G102,L12),\"\")","v":0}]
["",null,null,null,null,null,null,0,null,null,null,"كل القاعات",{"$f":"IFERROR(COUNTIF($G$4:G102,L13),\"\")","v":0}]
["",null,null,null,null,null,null,0,null,null,null,"أونلاين",{"$f":"IFERROR(COUNTIF($G$4:G102,L14),\"\")","v":0}]
["",null,null,null,null,null,null,0,null,null,null,"أنشطة خارجية",{"$f":"COUNTA($G$4:G102)-SUM($M$5:$M$14)","v":0}]
["",null,null,null,null,null,null,0,null,null,null,"إجمالى عدد الأنشطة",{"$f":"SUM(M6:M15)","v":0}]
["",null,null,null,null,null,null,0,null,null,null,"عدد الاجتماعات ",{"$f":"IFERROR(COUNTIF($C$4:$C$102,P4),\"\")","v":0}]
["",null,null,null,null,null,null,0]
["",null,null,null,null,null,null,0]
["",null,null,null,null,null,null,0]
["",null,null,null,null,null,null,0]
["",null,null,null,null,null,null,0]
["",null,null,null,null,null,null,0]
["",null,null,null,null,null,null,0]
["",null,null,null,null,null,null,0]
["",null,null,null,null,null,null,0]
["",null,null,null,null,null,null,0]
["",null,null,null,null,null,null,0]
["",null,null,null,null,null,null,0]
["",null,null,null,null,null,null,0]
["",null,null,null,null,null,null,0]
["",null,null,null,null,null,null,0]
["",null,null,null,null,null,null,0]
["",null,null,null,null,null,null,0]
["",null,null,null,null,null,null,0]
["",null,null,null,null,null,null,0]
["",null,null,null,null,null,null,0]
["",null,null,null,null,null,null,0]
["",null,null,null,null,null,null,0,null,"الندوات"]
["",null,null,null,null,null,null,0,null,"مقرري اللجان"]
["",null,null,null,null,null,null,0,null,"الآداب"]
["",null,null,null,null,null,null,0,null,"العلوم الاجتماعية"]
["",null,null,null,null,null,null,0,null,"القاعة العامة"]
["",null,null,null,null,null,null,0,null,"المؤتمرات"]
["",null,null,null,null,null,null,0,null,"المجلس"]
["",null,null,null,null,null,null,0,null,"الفنون"]
["",null,null,null,null,null,null,0,null,"كل القاعات"]
["",null,null,null,null,null,null,0,null,"أونلاين"]
["",null,null,null,null,null,null,0,null,"نشاط خارجي"]
["",null,null,null,null,null,null,0]
["",null,null,null,null,null,null,0]
["",null,null,null,null,null,null,0]
["",null,null,null,null,null,null,0]
["",null,null,null,null,null,null,0]
["",null,null,null,null,null,null,0]
["",null,null,null,null,null,null,0]
["",null,null,null,null,null,null,0]
["",null,null,null,null,null,null,0]
["",null,null,null,null,null,null,0]
["",null,null,null,null,null,null,0]
["",null,null,null,null,null,null,0]
["",null,null,null,null,null,null,0]
["",null,null,null,null,null,null,0]
["",null,null,null,null,null,null,0]
["",null,null,null,null,null,null,0]
["",null,null,null,null,null,null,0]
["",null,null,null,null,null,null,0]
["",null,null,null,null,null,null,0]
["",null,null,null,null,null,null,0]
["",null,null,null,null,null,null,0]
["",null,null,null,null,null,null,0]
["",null,null,null,null,null,null,0]
["",null,null,null,null,null,null,0]
["",null,null,null,null,null,null,0]
["",null,null,null,null,null,null,0]
["",null,null,null,null,null,null,0]
["",null,null,null,null,null,null,0]
["",null,null,null,null,null,null,0]
["",null,null,null,null,null,null,0]
["",null,null,null,null,null,null,0]
["",null,null,null,null,null,null,0]
["",null,null,null,null,null,null,0]
["",null,null,null,null,null,null,0]
["",null,null,null,null,null,null,0]
["",null,null,null,null,null,null,0]
["",null,null,null,null,null,null,0]
["",null,null,null,null,null,null,0]
["",null,null,null,null,null,null,0]
["",null,null,null,null,null,null,0]
["",null,null,null,null,null,null,0]
["",null,null,null,null,null,null,0]
["",null,null,null,null,null,null,0]
["",null,null,null,null,null,null,0]
["",null,null,null,null,null,null,0]
["",null,null,null,null,null,null,0]
["",null,null,null,null,null,null,0]
["",null,null,null,null,null,null,0]
["",null,null,null,null,null,null,0]
["",null,null,null,null,null,null,0]
["",null,null,null,null,null,null,0]
[]
[null,null,null,null,null,null,null,null,null,"الندوات"]

{"sheet":"يوليو","index":6,"n_rows":102,"n_cols":16,"rows_kept":102,"cut":false,"hidden":false,"merged":[[0,0,1,6],[2,11,2,12],[1,10,2,10]]}
["أنشطة شهر يوليو 2022",null,null,null,null,null,null," "]
[null,null,null,null,null,null,null,null,null,null,"عودة"]
["اليوم","التاريخ","النشـــــــــــــــــــــــــاط","المنظم","من","إلى","القاعة","التكرار",null,null,null,"بيان بعدد الأنشطة شهريًا"]
[{"$f":"IF(B4=\"\",\"\",TEXT(B4,\"dddd\"))","v":""},null,null,null,null,null,null,{"$f":"COUNTIFS(G:G,G4,F:F,F4,E:E,E4,B:B,B4)","v":0},null,null,null,"القاعة","عدد الأنشطة",null,null,"اجتماع"]
["",null,null,null,null,null,null,0,null,null,null,"الندوات",{"$f":"IFERROR(COUNTIF($G$4:G100,L5),\"\")","v":0}]
["",null,null,null,null,null,null,0,null,null,null,"مقرري اللجان",0]
["",null,null,null,null,null,null,0,null,null,null,"الآداب",0]
["",null,null,null,null,null,null,0,null,null,null,"العلوم الاجتماعية",{"$f":"IFERROR(COUNTIF($G$4:G102,L8),\"\")","v":0}]
["",null,null,null,null,null,null,0,null,null,null,"القاعة العامة",{"$f":"IFERROR(COUNTIF($G$4:G102,L9),\"\")","v":0}]
["",null,null,null,null,null,null,0,null,null,null,"المؤتمرات",{"$f":"IFERROR(COUNTIF($G$4:G102,L10),\"\")","v":0}]
["",null,null,null,null,null,null,0,null,null,null,"المجلس",{"$f":"IFERROR(COUNTIF($G$4:G102,L11),\"\")","v":0}]
["",null,null,null,null,null,null,0,null,null,null,"الفنون",{"$f":"IFERROR(COUNTIF($G$4:G102,L12),\"\")","v":0}]
["",null,null,null,null,null,null,0,null,null,null,"كل القاعات",{"$f":"IFERROR(COUNTIF($G$4:G102,L13),\"\")","v":0}]
["",null,null,null,null,null,null,0,null,null,null,"أونلاين",{"$f":"IFERROR(COUNTIF($G$4:G102,L14),\"\")","v":0}]
["",null,null,null,null,null,null,0,null,null,null,"أنشطة خارجية",{"$f":"COUNTA($G$4:G102)-SUM($M$5:$M$14)","v":0}]
["",null,null,null,null,null,null,0,null,null,null,"إجمالى عدد الأنشطة",{"$f":"SUM(M6:M15)","v":0}]
["",null,null,null,null,null,null,0,null,null,null,"عدد الاجتماعات ",{"$f":"IFERROR(COUNTIF($C$4:$C$102,P4),\"\")","v":0}]
["",null,null,null,null,null,null,0]
["",null,null,null,null,null,null,0]
["",null,null,null,null,null,null,0]
["",null,null,null,null,null,null,0]
["",null,null,null,null,null,null,0]
["",null,null,null,null,null,null,0]
["",null,null,null,null,null,null,0]
["",null,null,null,null,null,null,0]
["",null,null,null,null,null,null,0]
["",null,null,null,null,null,null,0]
["",null,null,null,null,null,null,0]
["",null,null,null,null,null,null,0]
["",null,null,null,null,null,null,0]
["",null,null,null,null,null,null,0]
["",null,null,null,null,null,null,0]
["",null,null,null,null,null,null,0]
["",null,null,null,null,null,null,0]
["",null,null,null,null,null,null,0]
["",null,null,null,null,null,null,0]
["",null,null,null,null,null,null,0]
["",null,null,null,null,null,null,0]
["",null,null,null,null,null,null,0,null,"الندوات"]
["",null,null,null,null,null,null,0,null,"مقرري اللجان"]
["",null,null,null,null,null,null,0,null,"الآداب"]
["",null,null,null,null,null,null,0,null,"العلوم الاجتماعية"]
["",null,null,null,null,null,null,0,null,"القاعة العامة"]
["",null,null,null,null,null,null,0,null,"المؤتمرات"]
["",null,null,null,null,null,null,0,null,"المجلس"]
["",null,null,null,null,null,null,0,null,"الفنون"]
["",null,null,null,null,null,null,0,null,"كل القاعات"]
["",null,null,null,null,null,null,0,null,"أونلاين"]
["",null,null,null,null,null,null,0,null,"نشاط خارجي"]
["",null,null,null,null,null,null,0]
["",null,null,null,null,null,null,0]
["",null,null,null,null,null,null,0]
["",null,null,null,null,null,null,0]
["",null,null,null,null,null,null,0]
["",null,null,null,null,null,null,0]
["",null,null,null,null,null,null,0]
["",null,null,null,null,null,null,0]
["",null,null,null,null,null,null,0]
["",null,null,null,null,null,null,0]
["",null,null,null,null,null,null,0]
["",null,null,null,null,null,null,0]
["",null,null,null,null,null,null,0]
["",null,null,null,null,null,null,0]
["",null,null,null,null,null,null,0]
["",null,null,null,null,null,null,0]
["",null,null,null,null,null,null,0]
["",null,null,null,null,null,null,0]
["",null,null,null,null,null,null,0]
["",null,null,null,null,null,null,0]
["",null,null,null,null,null,null,0]
["",null,null,null,null,null,null,0]
["",null,null,null,null,null,null,0]
["",null,null,null,null,null,null,0]
["",null,null,null,null,null,null,0]
["",null,null,null,null,null,null,0]
["",null,null,null,null,null,null,0]
["",null,null,null,null,null,null,0]
["",null,null,null,null,null,null,0]
["",null,null,null,null,null,null,0]
["",null,null,null,null,null,null,0]
["",null,null,null,null,null,null,0]
["",null,null,null,null,null,null,0]
["",null,null,null,null,null,null,0]
["",null,null,null,null,null,null,0]
["",null,null,null,null,null,null,0]
["",null,null,null,null,null,null,0]
["",null,null,null,null,null,null,0]
["",null,null,null,null,null,null,0]
["",null,null,null,null,null,null,0]
["",null,null,null,null,null,null,0]
["",null,null,null,null,null,null,0]
["",null,null,null,null,null,null,0]
["",null,null,null,null,null,null,0]
["",null,null,null,null,null,null,0]
["",null,null,null,null,null,null,0]
["",null,null,null,null,null,null,0]
["",null,null,null,null,null,null,0]
["",null,null,null,null,null,null,0]
["",null,null,null,null,null,null,0]
["",null,null,null,null,null,null,0]
[]
[null,null,null,null,null,null,null,null,null,"الندوات"]

{"sheet":"أغسطس","index":7,"n_rows":102,"n_cols":16,"rows_kept":102,"cut":false,"hidden":false,"merged":[[0,0,1,6],[2,11,2,12],[1,10,2,10]]}
["أنشطة شهر أغسطس 2022",null,null,null,null,null,null," "]
[null,null,null,null,null,null,null,null,null,null,"عودة"]
["اليوم","التاريخ","النشـــــــــــــــــــــــــاط","المنظم","من","إلى","القاعة","التكرار",null,null,null,"بيان بعدد الأنشطة شهريًا"]
[{"$f":"IF(B4=\"\",\"\",TEXT(B4,\"dddd\"))","v":""},null,null,null,null,null,null,{"$f":"COUNTIFS(G:G,G4,F:F,F4,E:E,E4,B:B,B4)","v":0},null,null,null,"القاعة","عدد الأنشطة",null,null,"اجتماع"]
["",null,null,null,null,null,null,0,null,null,null,"الندوات",{"$f":"IFERROR(COUNTIF($G$4:G100,L5),\"\")","v":0}]
["",null,null,null,null,null,null,0,null,null,null,"مقرري اللجان",0]
["",null,null,null,null,null,null,0,null,null,null,"الآداب",0]
["",null,null,null,null,null,null,0,null,null,null,"العلوم الاجتماعية",{"$f":"IFERROR(COUNTIF($G$4:G102,L8),\"\")","v":0}]
["",null,null,null,null,null,null,0,null,null,null,"القاعة العامة",{"$f":"IFERROR(COUNTIF($G$4:G102,L9),\"\")","v":0}]
["",null,null,null,null,null,null,0,null,null,null,"المؤتمرات",{"$f":"IFERROR(COUNTIF($G$4:G102,L10),\"\")","v":0}]
["",null,null,null,null,null,null,0,null,null,null,"المجلس",{"$f":"IFERROR(COUNTIF($G$4:G102,L11),\"\")","v":0}]
["",null,null,null,null,null,null,0,null,null,null,"الفنون",{"$f":"IFERROR(COUNTIF($G$4:G102,L12),\"\")","v":0}]
["",null,null,null,null,null,null,0,null,null,null,"كل القاعات",{"$f":"IFERROR(COUNTIF($G$4:G102,L13),\"\")","v":0}]
["",null,null,null,null,null,null,0,null,null,null,"أونلاين",{"$f":"IFERROR(COUNTIF($G$4:G102,L14),\"\")","v":0}]
["",null,null,null,null,null,null,0,null,null,null,"أنشطة خارجية",{"$f":"COUNTA($G$4:G102)-SUM($M$5:$M$14)","v":0}]
["",null,null,null,null,null,null,0,null,null,null,"إجمالى عدد الأنشطة",{"$f":"SUM(M6:M15)","v":0}]
["",null,null,null,null,null,null,0,null,null,null,"عدد الاجتماعات ",{"$f":"IFERROR(COUNTIF($C$4:$C$102,P4),\"\")","v":0}]
["",null,null,null,null,null,null,0]
["",null,null,null,null,null,null,0]
["",null,null,null,null,null,null,0]
["",null,null,null,null,null,null,0]
["",null,null,null,null,null,null,0]
["",null,null,null,null,null,null,0]
["",null,null,null,null,null,null,0]
["",null,null,null,null,null,null,0]
["",null,null,null,null,null,null,0]
["",null,null,null,null,null,null,0]
["",null,null,null,null,null,null,0]
["",null,null,null,null,null,null,0]
["",null,null,null,null,null,null,0]
["",null,null,null,null,null,null,0]
["",null,null,null,null,null,null,0]
["",null,null,null,null,null,null,0]
["",null,null,null,null,null,null,0]
["",null,null,null,null,null,null,0]
["",null,null,null,null,null,null,0]
["",null,null,null,null,null,null,0]
["",null,null,null,null,null,null,0]
["",null,null,null,null,null,null,0,null,"الندوات"]
["",null,null,null,null,null,null,0,null,"مقرري اللجان"]
["",null,null,null,null,null,null,0,null,"الآداب"]
["",null,null,null,null,null,null,0,null,"العلوم الاجتماعية"]
["",null,null,null,null,null,null,0,null,"القاعة العامة"]
["",null,null,null,null,null,null,0,null,"المؤتمرات"]
["",null,null,null,null,null,null,0,null,"المجلس"]
["",null,null,null,null,null,null,0,null,"الفنون"]
["",null,null,null,null,null,null,0,null,"كل القاعات"]
["",null,null,null,null,null,null,0,null,"أونلاين"]
["",null,null,null,null,null,null,0,null,"نشاط خارجي"]
["",null,null,null,null,null,null,0]
["",null,null,null,null,null,null,0]
["",null,null,null,null,null,null,0]
["",null,null,null,null,null,null,0]
["",null,null,null,null,null,null,0]
["",null,null,null,null,null,null,0]
["",null,null,null,null,null,null,0]
["",null,null,null,null,null,null,0]
["",null,null,null,null,null,null,0]
["",null,null,null,null,null,null,0]
["",null,null,null,null,null,null,0]
["",null,null,null,null,null,null,0]
["",null,null,null,null,null,null,0]
["",null,null,null,null,null,null,0]
["",null,null,null,null,null,null,0]
["",null,null,null,null,null,null,0]
["",null,null,null,null,null,null,0]
["",null,null,null,null,null,null,0]
["",null,null,null,null,null,null,0]
["",null,null,null,null,null,null,0]
["",null,null,null,null,null,null,0]
["",null,null,null,null,null,null,0]
["",null,null,null,null,null,null,0]
["",null,null,null,null,null,null,0]
["",null,null,null,null,null,null,0]
["",null,null,null,null,null,null,0]
["",null,null,null,null,null,null,0]
["",null,null,null,null,null,null,0]
["",null,null,null,null,null,null,0]
["",null,null,null,null,null,null,0]
["",null,null,null,null,null,null,0]
["",null,null,null,null,null,null,0]
["",null,null,null,null,null,null,0]
["",null,null,null,null,null,null,0]
["",null,null,null,null,null,null,0]
["",null,null,null,null,null,null,0]
["",null,null,null,null,null,null,0]
["",null,null,null,null,null,null,0]
["",null,null,null,null,null,null,0]
["",null,null,null,null,null,null,0]
["",null,null,null,null,null,null,0]
["",null,null,null,null,null,null,0]
["",null,null,null,null,null,null,0]
["",null,null,null,null,null,null,0]
["",null,null,null,null,null,null,0]
["",null,null,null,null,null,null,0]
["",null,null,null,null,null,null,0]
["",null,null,null,null,null,null,0]
["",null,null,null,null,null,null,0]
["",null,null,null,null,null,null,0]
["",null,null,null,null,null,null,0]
[]
[null,null,null,null,null,null,null,null,null,"الندوات"]

{"sheet":"سبتمبر","index":8,"n_rows":102,"n_cols":16,"rows_kept":102,"cut":false,"hidden":false,"merged":[[0,0,1,6],[2,11,2,12],[1,10,2,10]]}
["أنشطة شهر سبتمبر 2022",null,null,null,null,null,null," "]
[null,null,null,null,null,null,null,null,null,null,"عودة"]
["اليوم","التاريخ","النشـــــــــــــــــــــــــاط","المنظم","من","إلى","القاعة","التكرار",null,null,null,"بيان بعدد الأنشطة شهريًا"]
[{"$f":"IF(B4=\"\",\"\",TEXT(B4,\"dddd\"))","v":""},null,null,null,null,null,null,{"$f":"COUNTIFS(G:G,G4,F:F,F4,E:E,E4,B:B,B4)","v":0},null,null,null,"القاعة","عدد الأنشطة",null,null,"اجتماع"]
["",null,null,null,null,null,null,0,null,null,null,"الندوات",{"$f":"IFERROR(COUNTIF($G$4:G100,L5),\"\")","v":0}]
["",null,null,null,null,null,null,0,null,null,null,"مقرري اللجان",0]
["",null,null,null,null,null,null,0,null,null,null,"الآداب",0]
["",null,null,null,null,null,null,0,null,null,null,"العلوم الاجتماعية",{"$f":"IFERROR(COUNTIF($G$4:G102,L8),\"\")","v":0}]
["",null,null,null,null,null,null,0,null,null,null,"القاعة العامة",{"$f":"IFERROR(COUNTIF($G$4:G102,L9),\"\")","v":0}]
["",null,null,null,null,null,null,0,null,null,null,"المؤتمرات",{"$f":"IFERROR(COUNTIF($G$4:G102,L10),\"\")","v":0}]
["",null,null,null,null,null,null,0,null,null,null,"المجلس",{"$f":"IFERROR(COUNTIF($G$4:G102,L11),\"\")","v":0}]
["",null,null,null,null,null,null,0,null,null,null,"الفنون",{"$f":"IFERROR(COUNTIF($G$4:G102,L12),\"\")","v":0}]
["",null,null,null,null,null,null,0,null,null,null,"كل القاعات",{"$f":"IFERROR(COUNTIF($G$4:G102,L13),\"\")","v":0}]
["",null,null,null,null,null,null,0,null,null,null,"أونلاين",{"$f":"IFERROR(COUNTIF($G$4:G102,L14),\"\")","v":0}]
["",null,null,null,null,null,null,0,null,null,null,"أنشطة خارجية",{"$f":"COUNTA($G$4:G102)-SUM($M$5:$M$14)","v":0}]
["",null,null,null,null,null,null,0,null,null,null,"إجمالى عدد الأنشطة",{"$f":"SUM(M6:M15)","v":0}]
["",null,null,null,null,null,null,0,null,null,null,"عدد الاجتماعات ",{"$f":"IFERROR(COUNTIF($C$4:$C$102,P4),\"\")","v":0}]
["",null,null,null,null,null,null,0]
["",null,null,null,null,null,null,0]
["",null,null,null,null,null,null,0]
["",null,null,null,null,null,null,0]
["",null,null,null,null,null,null,0]
["",null,null,null,null,null,null,0]
["",null,null,null,null,null,null,0]
["",null,null,null,null,null,null,0]
["",null,null,null,null,null,null,0]
["",null,null,null,null,null,null,0]
["",null,null,null,null,null,null,0]
["",null,null,null,null,null,null,0]
["",null,null,null,null,null,null,0]
["",null,null,null,null,null,null,0]
["",null,null,null,null,null,null,0]
["",null,null,null,null,null,null,0]
["",null,null,null,null,null,null,0]
["",null,null,null,null,null,null,0]
["",null,null,null,null,null,null,0]
["",null,null,null,null,null,null,0]
["",null,null,null,null,null,null,0]
["",null,null,null,null,null,null,0,null,"الندوات"]
["",null,null,null,null,null,null,0,null,"مقرري اللجان"]
["",null,null,null,null,null,null,0,null,"الآداب"]
["",null,null,null,null,null,null,0,null,"العلوم الاجتماعية"]
["",null,null,null,null,null,null,0,null,"القاعة العامة"]
["",null,null,null,null,null,null,0,null,"المؤتمرات"]
["",null,null,null,null,null,null,0,null,"المجلس"]
["",null,null,null,null,null,null,0,null,"الفنون"]
["",null,null,null,null,null,null,0,null,"كل القاعات"]
["",null,null,null,null,null,null,0,null,"أونلاين"]
["",null,null,null,null,null,null,0,null,"نشاط خارجي"]
["",null,null,null,null,null,null,0]
["",null,null,null,null,null,null,0]
["",null,null,null,null,null,null,0]
["",null,null,null,null,null,null,0]
["",null,null,null,null,null,null,0]
["",null,null,null,null,null,null,0]
["",null,null,null,null,null,null,0]
["",null,null,null,null,null,null,0]
["",null,null,null,null,null,null,0]
["",null,null,null,null,null,null,0]
["",null,null,null,null,null,null,0]
["",null,null,null,null,null,null,0]
["",null,null,null,null,null,null,0]
["",null,null,null,null,null,null,0]
["",null,null,null,null,null,null,0]
["",null,null,null,null,null,null,0]
["",null,null,null,null,null,null,0]
["",null,null,null,null,null,null,0]
["",null,null,null,null,null,null,0]
["",null,null,null,null,null,null,0]
["",null,null,null,null,null,null,0]
["",null,null,null,null,null,null,0]
["",null,null,null,null,null,null,0]
["",null,null,null,null,null,null,0]
["",null,null,null,null,null,null,0]
["",null,null,null,null,null,null,0]
["",null,null,null,null,null,null,0]
["",null,null,null,null,null,null,0]
["",null,null,null,null,null,null,0]
["",null,null,null,null,null,null,0]
["",null,null,null,null,null,null,0]
["",null,null,null,null,null,null,0]
["",null,null,null,null,null,null,0]
["",null,null,null,null,null,null,0]
["",null,null,null,null,null,null,0]
["",null,null,null,null,null,null,0]
["",null,null,null,null,null,null,0]
["",null,null,null,null,null,null,0]
["",null,null,null,null,null,null,0]
["",null,null,null,null,null,null,0]
["",null,null,null,null,null,null,0]
["",null,null,null,null,null,null,0]
["",null,null,null,null,null,null,0]
["",null,null,null,null,null,null,0]
["",null,null,null,null,null,null,0]
["",null,null,null,null,null,null,0]
["",null,null,null,null,null,null,0]
["",null,null,null,null,null,null,0]
["",null,null,null,null,null,null,0]
["",null,null,null,null,null,null,0]
["",null,null,null,null,null,null,0]
[]
[null,null,null,null,null,null,null,null,null,"الندوات"]

{"sheet":"أكتوبر","index":9,"n_rows":102,"n_cols":16,"rows_kept":102,"cut":false,"hidden":false,"merged":[[0,0,1,6],[2,11,2,12],[1,10,2,10]]}
["أنشطة شهر أكتوبر 2022",null,null,null,null,null,null," "]
[null,null,null,null,null,null,null,null,null,null,"عودة"]
["اليوم","التاريخ","النشـــــــــــــــــــــــــاط","المنظم","من","إلى","القاعة","التكرار",null,null,null,"بيان بعدد الأنشطة شهريًا"]
[{"$f":"IF(B4=\"\",\"\",TEXT(B4,\"dddd\"))","v":""},null,null,null,null,null,null,{"$f":"COUNTIFS(G:G,G4,F:F,F4,E:E,E4,B:B,B4)","v":0},null,null,null,"القاعة","عدد الأنشطة",null,null,"اجتماع"]
["",null,null,null,null,null,null,0,null,null,null,"الندوات",{"$f":"IFERROR(COUNTIF($G$4:G100,L5),\"\")","v":0}]
["",null,null,null,null,null,null,0,null,null,null,"مقرري اللجان",0]
["",null,null,null,null,null,null,0,null,null,null,"الآداب",0]
["",null,null,null,null,null,null,0,null,null,null,"العلوم الاجتماعية",{"$f":"IFERROR(COUNTIF($G$4:G102,L8),\"\")","v":0}]
["",null,null,null,null,null,null,0,null,null,null,"القاعة العامة",{"$f":"IFERROR(COUNTIF($G$4:G102,L9),\"\")","v":0}]
["",null,null,null,null,null,null,0,null,null,null,"المؤتمرات",{"$f":"IFERROR(COUNTIF($G$4:G102,L10),\"\")","v":0}]
["",null,null,null,null,null,null,0,null,null,null,"المجلس",{"$f":"IFERROR(COUNTIF($G$4:G102,L11),\"\")","v":0}]
["",null,null,null,null,null,null,0,null,null,null,"الفنون",{"$f":"IFERROR(COUNTIF($G$4:G102,L12),\"\")","v":0}]
["",null,null,null,null,null,null,0,null,null,null,"كل القاعات",{"$f":"IFERROR(COUNTIF($G$4:G102,L13),\"\")","v":0}]
["",null,null,null,null,null,null,0,null,null,null,"أونلاين",{"$f":"IFERROR(COUNTIF($G$4:G102,L14),\"\")","v":0}]
["",null,null,null,null,null,null,0,null,null,null,"أنشطة خارجية",{"$f":"COUNTA($G$4:G102)-SUM($M$5:$M$14)","v":0}]
["",null,null,null,null,null,null,0,null,null,null,"إجمالى عدد الأنشطة",{"$f":"SUM(M6:M15)","v":0}]
["",null,null,null,null,null,null,0,null,null,null,"عدد الاجتماعات ",{"$f":"IFERROR(COUNTIF($C$4:$C$102,P4),\"\")","v":0}]
["",null,null,null,null,null,null,0]
["",null,null,null,null,null,null,0]
["",null,null,null,null,null,null,0]
["",null,null,null,null,null,null,0]
["",null,null,null,null,null,null,0]
["",null,null,null,null,null,null,0]
["",null,null,null,null,null,null,0]
["",null,null,null,null,null,null,0]
["",null,null,null,null,null,null,0]
["",null,null,null,null,null,null,0]
["",null,null,null,null,null,null,0]
["",null,null,null,null,null,null,0]
["",null,null,null,null,null,null,0]
["",null,null,null,null,null,null,0]
["",null,null,null,null,null,null,0]
["",null,null,null,null,null,null,0]
["",null,null,null,null,null,null,0]
["",null,null,null,null,null,null,0]
["",null,null,null,null,null,null,0]
["",null,null,null,null,null,null,0]
["",null,null,null,null,null,null,0]
["",null,null,null,null,null,null,0,null,"الندوات"]
["",null,null,null,null,null,null,0,null,"مقرري اللجان"]
["",null,null,null,null,null,null,0,null,"الآداب"]
["",null,null,null,null,null,null,0,null,"العلوم الاجتماعية"]
["",null,null,null,null,null,null,0,null,"القاعة العامة"]
["",null,null,null,null,null,null,0,null,"المؤتمرات"]
["",null,null,null,null,null,null,0,null,"المجلس"]
["",null,null,null,null,null,null,0,null,"الفنون"]
["",null,null,null,null,null,null,0,null,"كل القاعات"]
["",null,null,null,null,null,null,0,null,"أونلاين"]
["",null,null,null,null,null,null,0,null,"نشاط خارجي"]
["",null,null,null,null,null,null,0]
["",null,null,null,null,null,null,0]
["",null,null,null,null,null,null,0]
["",null,null,null,null,null,null,0]
["",null,null,null,null,null,null,0]
["",null,null,null,null,null,null,0]
["",null,null,null,null,null,null,0]
["",null,null,null,null,null,null,0]
["",null,null,null,null,null,null,0]
["",null,null,null,null,null,null,0]
["",null,null,null,null,null,null,0]
["",null,null,null,null,null,null,0]
["",null,null,null,null,null,null,0]
["",null,null,null,null,null,null,0]
["",null,null,null,null,null,null,0]
["",null,null,null,null,null,null,0]
["",null,null,null,null,null,null,0]
["",null,null,null,null,null,null,0]
["",null,null,null,null,null,null,0]
["",null,null,null,null,null,null,0]
["",null,null,null,null,null,null,0]
["",null,null,null,null,null,null,0]
["",null,null,null,null,null,null,0]
["",null,null,null,null,null,null,0]
["",null,null,null,null,null,null,0]
["",null,null,null,null,null,null,0]
["",null,null,null,null,null,null,0]
["",null,null,null,null,null,null,0]
["",null,null,null,null,null,null,0]
["",null,null,null,null,null,null,0]
["",null,null,null,null,null,null,0]
["",null,null,null,null,null,null,0]
["",null,null,null,null,null,null,0]
["",null,null,null,null,null,null,0]
["",null,null,null,null,null,null,0]
["",null,null,null,null,null,null,0]
["",null,null,null,null,null,null,0]
["",null,null,null,null,null,null,0]
["",null,null,null,null,null,null,0]
["",null,null,null,null,null,null,0]
["",null,null,null,null,null,null,0]
["",null,null,null,null,null,null,0]
["",null,null,null,null,null,null,0]
["",null,null,null,null,null,null,0]
["",null,null,null,null,null,null,0]
["",null,null,null,null,null,null,0]
["",null,null,null,null,null,null,0]
["",null,null,null,null,null,null,0]
["",null,null,null,null,null,null,0]
["",null,null,null,null,null,null,0]
["",null,null,null,null,null,null,0]
[]
[null,null,null,null,null,null,null,null,null,"الندوات"]

{"sheet":"نوفمبر","index":10,"n_rows":103,"n_cols":16,"rows_kept":103,"cut":false,"hidden":false,"merged":[[0,0,1,6],[2,11,2,12],[1,10,2,10]]}
["أنشطة شهر نوفمبر 2022",null,null,null,null,null,null," "]
[null,null,null,null,null,null,null,null,null,null,"عودة"]
["اليوم","التاريخ","النشـــــــــــــــــــــــــاط","المنظم","من","إلى","القاعة","التكرار",null,null,null,"بيان بعدد الأنشطة شهريًا"]
[{"$f":"IF(B4=\"\",\"\",TEXT(B4,\"dddd\"))","v":""},null,null,null,null,null,null,{"$f":"COUNTIFS(G:G,G4,F:F,F4,E:E,E4,B:B,B4)","v":0},null,null,null,"القاعة","عدد الأنشطة",null,null,"اجتماع"]
["",null,null,null,null,null,null,0,null,null,null,"الندوات",{"$f":"IFERROR(COUNTIF($G$4:G100,L5),\"\")","v":0}]
["",null,null,null,null,null,null,0,null,null,null,"مقرري اللجان",0]
["",null,null,null,null,null,null,0,null,null,null,"الآداب",0]
["",null,null,null,null,null,null,0,null,null,null,"العلوم الاجتماعية",0]
["",null,null,null,null,null,null,0,null,null,null,"القاعة العامة",{"$f":"IFERROR(COUNTIF($G$4:G103,L9),\"\")","v":0}]
["",null,null,null,null,null,null,0,null,null,null,"القاعة العامة",{"$f":"IFERROR(COUNTIF($G$4:G103,L10),\"\")","v":0}]
["",null,null,null,null,null,null,0,null,null,null,"المؤتمرات",{"$f":"IFERROR(COUNTIF($G$4:G103,L11),\"\")","v":0}]
["",null,null,null,null,null,null,0,null,null,null,"المجلس",{"$f":"IFERROR(COUNTIF($G$4:G103,L12),\"\")","v":0}]
["",null,null,null,null,null,null,0]
["",null,null,null,null,null,null,0]
[{"$f":"IF(B15=\"\",\"\",TEXT(B15,\"dddd\"))","v":""},null,null,null,null,null,null,0,null,null,null,"الفنون",{"$f":"IFERROR(COUNTIF($G$4:G103,L15),\"\")","v":0}]
["",null,null,null,null,null,null,0]
["",null,null,null,null,null,null,0,null,null,null,"كل القاعات",{"$f":"IFERROR(COUNTIF($G$4:G103,L17),\"\")","v":0}]
["",null,null,null,null,null,null,0]
["",null,null,null,null,null,null,0,null,null,null,"أونلاين",{"$f":"IFERROR(COUNTIF($G$4:G103,L19),\"\")","v":0}]
["",null,null,null,null,null,null,0,null,null,null,"أنشطة خارجية",{"$f":"COUNTA($G$4:G103)-SUM($M$5:$M$15)","v":0}]
["",null,null,null,null,null,null,0,null,null,null,"إجمالى عدد الأنشطة",{"$f":"SUM(M11:M20)","v":0}]
["",null,null,null,null,null,null,0,null,null,null,"عدد الاجتماعات ",{"$f":"IFERROR(COUNTIF($C$4:$C$103,P9),\"\")","v":0}]
["",null,null,null,null,null,null,0]
["",null,null,null,null,null,null,0]
[""]
["",null,null,null,null,null,null,null,null,"المؤتمرات"]
["",null,null,null,null,null,null,null,null,"المجلس"]
["",null,null,null,null,null,null,null,null,"نشاط خارجي"]
["",null,null,null,null,null,null,null,null,"الآداب"]
["",null,null,null,null,null,null,null,null,"الفنون"]
["",null,null,null,null,null,null,null,null,"كل القاعات"]
["",null,null,null,null,null,null,null,null,"أونلاين"]
["",null,null,null,null,null,null,null,null,"العلوم الاجتماعية"]
[""]
[""]
["",null,null,null,null,null,null,null,null,"مقرري اللجان"]
[""]
["",null,null,null,null,null,null,null,null,"القاعة العامة"]
["",null,null,null,null,null,null,{"$f":"COUNTIFS(G:G,G39,F:F,F39,E:E,E39,B:B,B39)","v":0}]
["",null,null,null,null,null,null,0]
["",null,null,null,null,null,null,0]
["",null,null,null,null,null,null,0]
["",null,null,null,null,null,null,0]
["",null,null,null,null,null,null,0]
["",null,null,null,null,null,null,0]
["",null,null,null,null,null,null,0]
["",null,null,null,null,null,null,0]
["",null,null,null,null,null,null,0]
["",null,null,null,null,null,null,0]
["",null,null,null,null,null,null,0]
["",null,null,null,null,null,null,0]
["",null,null,null,null,null,null,0]
["",null,null,null,null,null,null,0,null,"الندوات"]
["",null,null,null,null,null,null,0,null,"مقرري اللجان"]
["",null,null,null,null,null,null,0,null,"الآداب"]
["",null,null,null,null,null,null,0,null,"العلوم الاجتماعية"]
["",null,null,null,null,null,null,0,null,"القاعة العامة"]
["",null,null,null,null,null,null,0,null,"المؤتمرات"]
["",null,null,null,null,null,null,0,null,"المجلس"]
["",null,null,null,null,null,null,0,null,"الفنون"]
["",null,null,null,null,null,null,0,null,"كل القاعات"]
["",null,null,null,null,null,null,0,null,"أونلاين"]
["",null,null,null,null,null,null,0,null,"نشاط خارجي"]
["",null,null,null,null,null,null,0]
["",null,null,null,null,null,null,0]
["",null,null,null,null,null,null,0]
["",null,null,null,null,null,null,0]
["",null,null,null,null,null,null,0]
["",null,null,null,null,null,null,0]
["",null,null,null,null,null,null,0]
["",null,null,null,null,null,null,0]
["",null,null,null,null,null,null,0]
["",null,null,null,null,null,null,0]
["",null,null,null,null,null,null,0]
["",null,null,null,null,null,null,0]
["",null,null,null,null,null,null,0]
["",null,null,null,null,null,null,0]
["",null,null,null,null,null,null,0]
["",null,null,null,null,null,null,0]
["",null,null,null,null,null,null,0]
["",null,null,null,null,null,null,0]
["",null,null,null,null,null,null,0]
["",null,null,null,null,null,null,0]
["",null,null,null,null,null,null,0]
["",null,null,null,null,null,null,0]
["",null,null,null,null,null,null,0]
["",null,null,null,null,null,null,0]
["",null,null,null,null,null,null,0]
["",null,null,null,null,null,null,0]
["",null,null,null,null,null,null,0]
["",null,null,null,null,null,null,0]
["",null,null,null,null,null,null,0]
["",null,null,null,null,null,null,0]
["",null,null,null,null,null,null,0]
["",null,null,null,null,null,null,0]
["",null,null,null,null,null,null,0]
["",null,null,null,null,null,null,0]
["",null,null,null,null,null,null,0]
["",null,null,null,null,null,null,0]
["",null,null,null,null,null,null,0]
["",null,null,null,null,null,null,0]
["",null,null,null,null,null,null,0]
["",null,null,null,null,null,null,0]

{"sheet":"ديسمبر","index":11,"n_rows":102,"n_cols":16,"rows_kept":102,"cut":false,"hidden":false,"merged":[[0,0,1,6],[2,11,2,12],[1,10,2,10]]}
["أنشطة شهر ديسمبر 2022",null,null,null,null,null,null," "]
[null,null,null,null,null,null,null,null,null,null,"عودة"]
["اليوم","التاريخ","النشـــــــــــــــــــــــــاط","المنظم","من","إلى","القاعة","التكرار",null,null,null,"بيان بعدد الأنشطة شهريًا"]
[{"$f":"IF(B4=\"\",\"\",TEXT(B4,\"dddd\"))","v":""},null,null,null,null,null,null,{"$f":"COUNTIFS(G:G,G4,F:F,F4,E:E,E4,B:B,B4)","v":0},null,null,null,"القاعة","عدد الأنشطة",null,null,"اجتماع"]
["",null,null,null,null,null,null,0,null,null,null,"الندوات",{"$f":"IFERROR(COUNTIF($G$4:G100,L5),\"\")","v":0}]
["",null,null,null,null,null,null,0,null,null,null,"مقرري اللجان",0]
["",null,null,null,null,null,null,0,null,null,null,"الآداب",0]
["",null,null,null,null,null,null,0,null,null,null,"العلوم الاجتماعية",{"$f":"IFERROR(COUNTIF($G$4:G102,L8),\"\")","v":0}]
["",null,null,null,null,null,null,0,null,null,null,"القاعة العامة",{"$f":"IFERROR(COUNTIF($G$4:G102,L9),\"\")","v":0}]
["",null,null,null,null,null,null,0,null,null,null,"المؤتمرات",{"$f":"IFERROR(COUNTIF($G$4:G102,L10),\"\")","v":0}]
["",null,null,null,null,null,null,0,null,null,null,"المجلس",{"$f":"IFERROR(COUNTIF($G$4:G102,L11),\"\")","v":0}]
["",null,null,null,null,null,null,0,null,null,null,"الفنون",{"$f":"IFERROR(COUNTIF($G$4:G102,L12),\"\")","v":0}]
["",null,null,null,null,null,null,0,null,null,null,"كل القاعات",{"$f":"IFERROR(COUNTIF($G$4:G102,L13),\"\")","v":0}]
["",null,null,null,null,null,null,0,null,null,null,"أونلاين",{"$f":"IFERROR(COUNTIF($G$4:G102,L14),\"\")","v":0}]
["",null,null,null,null,null,null,0,null,null,null,"أنشطة خارجية",{"$f":"COUNTA($G$4:G102)-SUM($M$5:$M$14)","v":0}]
["",null,null,null,null,null,null,0,null,null,null,"إجمالى عدد الأنشطة",{"$f":"SUM(M6:M15)","v":0}]
["",null,null,null,null,null,null,0,null,null,null,"عدد الاجتماعات ",{"$f":"IFERROR(COUNTIF($C$4:$C$102,P4),\"\")","v":0}]
["",null,null,null,null,null,null,0]
["",null,null,null,null,null,null,0]
["",null,null,null,null,null,null,0]
["",null,null,null,null,null,null,0]
["",null,null,null,null,null,null,0]
["",null,null,null,null,null,null,0]
["",null,null,null,null,null,null,0]
["",null,null,null,null,null,null,0]
["",null,null,null,null,null,null,0]
["",null,null,null,null,null,null,0]
["",null,null,null,null,null,null,0]
["",null,null,null,null,null,null,0]
["",null,null,null,null,null,null,0]
["",null,null,null,null,null,null,0]
["",null,null,null,null,null,null,0]
["",null,null,null,null,null,null,0]
["",null,null,null,null,null,null,0]
["",null,null,null,null,null,null,0]
["",null,null,null,null,null,null,0]
["",null,null,null,null,null,null,0]
["",null,null,null,null,null,null,0]
["",null,null,null,null,null,null,0,null,"الندوات"]
["",null,null,null,null,null,null,0,null,"مقرري اللجان"]
["",null,null,null,null,null,null,0,null,"الآداب"]
["",null,null,null,null,null,null,0,null,"العلوم الاجتماعية"]
["",null,null,null,null,null,null,0,null,"القاعة العامة"]
["",null,null,null,null,null,null,0,null,"المؤتمرات"]
["",null,null,null,null,null,null,0,null,"المجلس"]
["",null,null,null,null,null,null,0,null,"الفنون"]
["",null,null,null,null,null,null,0,null,"كل القاعات"]
["",null,null,null,null,null,null,0,null,"أونلاين"]
["",null,null,null,null,null,null,0,null,"نشاط خارجي"]
["",null,null,null,null,null,null,0]
["",null,null,null,null,null,null,0]
["",null,null,null,null,null,null,0]
["",null,null,null,null,null,null,0]
["",null,null,null,null,null,null,0]
["",null,null,null,null,null,null,0]
["",null,null,null,null,null,null,0]
["",null,null,null,null,null,null,0]
["",null,null,null,null,null,null,0]
["",null,null,null,null,null,null,0]
["",null,null,null,null,null,null,0]
["",null,null,null,null,null,null,0]
["",null,null,null,null,null,null,0]
["",null,null,null,null,null,null,0]
["",null,null,null,null,null,null,0]
["",null,null,null,null,null,null,0]
["",null,null,null,null,null,null,0]
["",null,null,null,null,null,null,0]
["",null,null,null,null,null,null,0]
["",null,null,null,null,null,null,0]
["",null,null,null,null,null,null,0]
["",null,null,null,null,null,null,0]
["",null,null,null,null,null,null,0]
["",null,null,null,null,null,null,0]
["",null,null,null,null,null,null,0]
["",null,null,null,null,null,null,0]
["",null,null,null,null,null,null,0]
["",null,null,null,null,null,null,0]
["",null,null,null,null,null,null,0]
["",null,null,null,null,null,null,0]
["",null,null,null,null,null,null,0]
["",null,null,null,null,null,null,0]
["",null,null,null,null,null,null,0]
["",null,null,null,null,null,null,0]
["",null,null,null,null,null,null,0]
["",null,null,null,null,null,null,0]
["",null,null,null,null,null,null,0]
["",null,null,null,null,null,null,0]
["",null,null,null,null,null,null,0]
["",null,null,null,null,null,null,0]
["",null,null,null,null,null,null,0]
["",null,null,null,null,null,null,0]
["",null,null,null,null,null,null,0]
["",null,null,null,null,null,null,0]
["",null,null,null,null,null,null,0]
["",null,null,null,null,null,null,0]
["",null,null,null,null,null,null,0]
["",null,null,null,null,null,null,0]
["",null,null,null,null,null,null,0]
["",null,null,null,null,null,null,0]
["",null,null,null,null,null,null,0]
[]
[null,null,null,null,null,null,null,null,null,"الندوات"]

{"sheet":"2022","index":12,"n_rows":8,"n_cols":2,"rows_kept":8,"cut":false,"hidden":false,"merged":[]}
[]
[]
["يناير","يوليو"]
["فبراير","أغسطس"]
["مارس","سبتمبر"]
["أبريل","أكتوبر"]
["مايو","نوفمبر"]
["يونيو","ديسمبر"]

{"sheet":"حصر الأنشطة","index":13,"n_rows":48,"n_cols":12,"rows_kept":48,"cut":false,"hidden":false,"merged":[[17,1,17,2],[17,10,17,11],[18,10,18,11],[16,1,16,2],[2,1,2,2],[1,1,1,2],[1,4,1,5],[2,4,2,5],[2,7,2,8],[18,1,18,2],[17,4,17,5],[18,4,18,5],[17,7,17,8],[18,7,18,8],[1,7,1,8],[16,4,16,5],[1,10,1,11],[2,10,2,11],[34,1,34,2],[33,4,33,5],[34,4,34,5],[33,7,33,8],[34,7,34,8],[1,12,48,12],[1,0,48,0],[0,0,0,12],[32,1,32,2],[32,4,32,5],[32,10,32,11],[32,7,32,8],[48,1,48,11],[33,10,33,11],[34,10,34,11],[1,3,47,3],[1,6,47,6],[1,9,47,9],[16,7,16,8],[16,10,16,11],[33,1,33,2]]}
[]
[null,"يناير 2022",null,null,"فبراير 2022",null,null,"مارس 2022",null,null,"إبريل 2022"]
[null,"بيان بعدد الأنشطة شهريًا",null,null,"بيان بعدد الأنشطة شهريًا",null,null,"بيان بعدد الأنشطة شهريًا",null,null,"بيان بعدد الأنشطة شهريًا"]
[null,"القاعة","عدد الأنشطة",null,"القاعة","عدد الأنشطة",null,"القاعة","عدد الأنشطة",null,"القاعة","عدد الأنشطة"]
[null,"الندوات",{"$f":"IFERROR(COUNTIF(Table_122[القاعة],B5),\"\")","v":0},null,"الندوات",{"$f":"IFERROR(COUNTIF(Table_1223[القاعة],E5),\"\")","v":0},null,"الندوات",{"$f":"IF(H5=\"\",\"\",COUNTIF(Table_12234[القاعة],H5))","v":0},null,"الندوات",{"$f":"IFERROR(COUNTIF(Table_122345[القاعة],K5),\"\")","v":0}]
[null,"مقرري اللجان",{"$f":"IFERROR(COUNTIF(Table_122[القاعة],B6),\"\")","v":0},null,"مقرري اللجان",{"$f":"IFERROR(COUNTIF(Table_1223[القاعة],E6),\"\")","v":0},null,"مقرري اللجان",{"$f":"IFERROR(COUNTIF(Table_12234[القاعة],H6),\"\")","v":0},null,"مقرري اللجان",{"$f":"IFERROR(COUNTIF(Table_122345[القاعة],K6),\"\")","v":0}]
[null,"الآداب",{"$f":"IFERROR(COUNTIF(Table_122[القاعة],B7),\"\")","v":0},null,"الآداب",{"$f":"IFERROR(COUNTIF(Table_1223[القاعة],E7),\"\")","v":0},null,"الآداب",{"$f":"IFERROR(COUNTIF(Table_12234[القاعة],H7),\"\")","v":0},null,"الآداب",{"$f":"IFERROR(COUNTIF(Table_122345[القاعة],K7),\"\")","v":0}]
[null,"العلوم الاجتماعية",{"$f":"IFERROR(COUNTIF(Table_122[القاعة],B8),\"\")","v":0},null,"العلوم الاجتماعية",{"$f":"IFERROR(COUNTIF(Table_1223[القاعة],E8),\"\")","v":0},null,"العلوم الاجتماعية",{"$f":"IFERROR(COUNTIF(Table_12234[القاعة],H8),\"\")","v":0},null,"العلوم الاجتماعية",{"$f":"IFERROR(COUNTIF(Table_122345[القاعة],K8),\"\")","v":0}]
[null,"القاعة العامة",{"$f":"IFERROR(COUNTIF(Table_122[القاعة],B9),\"\")","v":0},null,"القاعة العامة",{"$f":"IFERROR(COUNTIF(Table_1223[القاعة],E9),\"\")","v":0},null,"القاعة العامة",{"$f":"IFERROR(COUNTIF(Table_12234[القاعة],H9),\"\")","v":0},null,"القاعة العامة",{"$f":"IFERROR(COUNTIF(Table_122345[القاعة],K9),\"\")","v":0}]
[null,"المؤتمرات",{"$f":"IFERROR(COUNTIF(Table_122[القاعة],B10),\"\")","v":0},null,"المؤتمرات",{"$f":"IFERROR(COUNTIF(Table_1223[القاعة],E10),\"\")","v":0},null,"المؤتمرات",{"$f":"IFERROR(COUNTIF(Table_12234[القاعة],H10),\"\")","v":0},null,"المؤتمرات",{"$f":"IFERROR(COUNTIF(Table_122345[القاعة],K10),\"\")","v":0}]
[null,"المجلس",{"$f":"IFERROR(COUNTIF(Table_122[القاعة],B11),\"\")","v":0},null,"المجلس",{"$f":"IFERROR(COUNTIF(Table_1223[القاعة],E11),\"\")","v":0},null,"المجلس",{"$f":"IFERROR(COUNTIF(Table_12234[القاعة],H11),\"\")","v":0},null,"المجلس",{"$f":"IFERROR(COUNTIF(Table_122345[القاعة],K11),\"\")","v":0}]
[null,"الفنون",{"$f":"IFERROR(COUNTIF(Table_122[القاعة],B12),\"\")","v":0},null,"الفنون",{"$f":"IFERROR(COUNTIF(Table_1223[القاعة],E12),\"\")","v":0},null,"الفنون",{"$f":"IFERROR(COUNTIF(Table_12234[القاعة],H12),\"\")","v":0},null,"الفنون",{"$f":"IFERROR(COUNTIF(Table_122345[القاعة],K12),\"\")","v":0}]
[null,"كل القاعات",{"$f":"IFERROR(COUNTIF(Table_122[القاعة],B13),\"\")","v":0},null,"كل القاعات",{"$f":"IFERROR(COUNTIF(Table_1223[القاعة],E13),\"\")","v":0},null,"كل القاعات",{"$f":"IFERROR(COUNTIF(Table_12234[القاعة],H13),\"\")","v":0},null,"كل القاعات",{"$f":"IFERROR(COUNTIF(Table_122345[القاعة],K13),\"\")","v":0}]
[null,"أونلاين",{"$f":"IFERROR(COUNTIF(Table_122[القاعة],B14),\"\")","v":0},null,"أونلاين",{"$f":"IFERROR(COUNTIF(Table_1223[القاعة],E14),\"\")","v":0},null,"أونلاين",{"$f":"IFERROR(COUNTIF(Table_12234[القاعة],H14),\"\")","v":0},null,"أونلاين",{"$f":"IFERROR(COUNTIF(Table_122345[القاعة],K14),\"\")","v":0}]
[null,"أنشطة خارجية",{"$f":"COUNTA(Table_122[القاعة])-SUM($C$5:$C$14)","v":0},null,"أنشطة خارجية",{"$f":"COUNTA(Table_1223[القاعة])-SUM($F$5:$F$14)","v":0},null,"أنشطة خارجية",{"$f":"COUNTA(Table_12234[القاعة])-SUM($I$5:$I$14)","v":0},null,"أنشطة خارجية",{"$f":"COUNTA(Table_122345[القاعة])-SUM($L$5:$L$14)","v":0}]
[null,"إجمالى عدد الأنشطة",{"$f":"SUM(C5:C15)","v":0},null,"إجمالى عدد الأنشطة",{"$f":"SUM(F5:F15)","v":0},null,"إجمالى عدد الأنشطة",{"$f":"SUM(I5:I15)","v":0},null,"إجمالى عدد الأنشطة",{"$f":"SUM(L5:L15)","v":0}]
[]
[null,"مايو 2022",null,null,"يونيو 2022",null,null,"يوليو 2022",null,null,"أغسطس 2022"]
[null,"بيان بعدد الأنشطة شهريًا",null,null,"بيان بعدد الأنشطة شهريًا",null,null,"بيان بعدد الأنشطة شهريًا",null,null,"بيان بعدد الأنشطة شهريًا"]
[null,"القاعة","عدد الأنشطة",null,"القاعة","عدد الأنشطة",null,"القاعة","عدد الأنشطة",null,"القاعة","عدد الأنشطة"]
[null,"الندوات",{"$f":"IFERROR(COUNTIF(Table_1223456[القاعة],B21),\"\")","v":0},null,"الندوات",{"$f":"IFERROR(COUNTIF(Table_12234567[القاعة],E21),\"\")","v":0},null,"الندوات",{"$f":"IFERROR(COUNTIF(Table_122345678[القاعة],H21),\"\")","v":0},null,"الندوات",{"$f":"IFERROR(COUNTIF(Table_1223456789[القاعة],K21),\"\")","v":0}]
[null,"مقرري اللجان",{"$f":"IFERROR(COUNTIF(Table_1223456[القاعة],B22),\"\")","v":0},null,"مقرري اللجان",{"$f":"IFERROR(COUNTIF(Table_12234567[القاعة],E22),\"\")","v":0},null,"مقرري اللجان",{"$f":"IFERROR(COUNTIF(Table_122345678[القاعة],H22),\"\")","v":0},null,"مقرري اللجان",{"$f":"IFERROR(COUNTIF(Table_1223456789[القاعة],K22),\"\")","v":0}]
[null,"الآداب",{"$f":"IFERROR(COUNTIF(Table_1223456[القاعة],B23),\"\")","v":0},null,"الآداب",{"$f":"IFERROR(COUNTIF(Table_12234567[القاعة],E23),\"\")","v":0},null,"الآداب",{"$f":"IFERROR(COUNTIF(Table_122345678[القاعة],H23),\"\")","v":0},null,"الآداب",{"$f":"IFERROR(COUNTIF(Table_1223456789[القاعة],K23),\"\")","v":0}]
[null,"العلوم الاجتماعية",{"$f":"IFERROR(COUNTIF(Table_1223456[القاعة],B24),\"\")","v":0},null,"العلوم الاجتماعية",{"$f":"IFERROR(COUNTIF(Table_12234567[القاعة],E24),\"\")","v":0},null,"العلوم الاجتماعية",{"$f":"IFERROR(COUNTIF(Table_122345678[القاعة],H24),\"\")","v":0},null,"العلوم الاجتماعية",{"$f":"IFERROR(COUNTIF(Table_1223456789[القاعة],K24),\"\")","v":0}]
[null,"القاعة العامة",{"$f":"IFERROR(COUNTIF(Table_1223456[القاعة],B25),\"\")","v":0},null,"القاعة العامة",{"$f":"IFERROR(COUNTIF(Table_12234567[القاعة],E25),\"\")","v":0},null,"القاعة العامة",{"$f":"IFERROR(COUNTIF(Table_122345678[القاعة],H25),\"\")","v":0},null,"القاعة العامة",{"$f":"IFERROR(COUNTIF(Table_1223456789[القاعة],K25),\"\")","v":0}]
[null,"المؤتمرات",{"$f":"IFERROR(COUNTIF(Table_1223456[القاعة],B26),\"\")","v":0},null,"المؤتمرات",{"$f":"IFERROR(COUNTIF(Table_12234567[القاعة],E26),\"\")","v":0},null,"المؤتمرات",{"$f":"IFERROR(COUNTIF(Table_122345678[القاعة],H26),\"\")","v":0},null,"المؤتمرات",{"$f":"IFERROR(COUNTIF(Table_1223456789[القاعة],K26),\"\")","v":0}]
[null,"المجلس",{"$f":"IFERROR(COUNTIF(Table_1223456[القاعة],B27),\"\")","v":0},null,"المجلس",{"$f":"IFERROR(COUNTIF(Table_12234567[القاعة],E27),\"\")","v":0},null,"المجلس",{"$f":"IFERROR(COUNTIF(Table_122345678[القاعة],H27),\"\")","v":0},null,"المجلس",{"$f":"IFERROR(COUNTIF(Table_1223456789[القاعة],K27),\"\")","v":0}]
[null,"الفنون",{"$f":"IFERROR(COUNTIF(Table_1223456[القاعة],B28),\"\")","v":0},null,"الفنون",{"$f":"IFERROR(COUNTIF(Table_12234567[القاعة],E28),\"\")","v":0},null,"الفنون",{"$f":"IFERROR(COUNTIF(Table_122345678[القاعة],H28),\"\")","v":0},null,"الفنون",{"$f":"IFERROR(COUNTIF(Table_1223456789[القاعة],K28),\"\")","v":0}]
[null,"كل القاعات",{"$f":"IFERROR(COUNTIF(Table_1223456[القاعة],B29),\"\")","v":0},null,"كل القاعات",{"$f":"IFERROR(COUNTIF(Table_12234567[القاعة],E29),\"\")","v":0},null,"كل القاعات",{"$f":"IFERROR(COUNTIF(Table_122345678[القاعة],H29),\"\")","v":0},null,"كل القاعات",{"$f":"IFERROR(COUNTIF(Table_1223456789[القاعة],K29),\"\")","v":0}]
[null,"أونلاين",{"$f":"IFERROR(COUNTIF(Table_1223456[القاعة],B30),\"\")","v":0},null,"أونلاين",{"$f":"IFERROR(COUNTIF(Table_12234567[القاعة],E30),\"\")","v":0},null,"أونلاين",{"$f":"IFERROR(COUNTIF(Table_122345678[القاعة],H30),\"\")","v":0},null,"أونلاين",{"$f":"IFERROR(COUNTIF(Table_1223456789[القاعة],K30),\"\")","v":0}]
[null,"أنشطة خارجية",{"$f":"COUNTA(Table_1223456[القاعة])-SUM($C$21:$C$30)","v":0},null,"أنشطة خارجية",{"$f":"COUNTA(Table_12234567[القاعة])-SUM($F$21:$F$30)","v":0},null,"أنشطة خارجية",{"$f":"COUNTA(Table_122345678[القاعة])-SUM($I$21:$I$30)","v":0},null,"أنشطة خارجية",{"$f":"COUNTA(Table_1223456789[القاعة])-SUM($L$21:$L$30)","v":0}]
[null,"إجمالى عدد الأنشطة",{"$f":"SUM(C21:C31)","v":0},null,"إجمالى عدد الأنشطة",{"$f":"SUM(F21:F31)","v":0},null,"إجمالى عدد الأنشطة",{"$f":"SUM(I21:I31)","v":0},null,"إجمالى عدد الأنشطة",{"$f":"SUM(L21:L31)","v":0}]
[]
[null,"سبتمبر 2022",null,null,"أكتوبر 2022",null,null,"نوفمبر 2022",null,null,"ديسمبر 2022"]
[null,"بيان بعدد الأنشطة شهريًا",null,null,"بيان بعدد الأنشطة شهريًا",null,null,"بيان بعدد الأنشطة شهريًا",null,null,"بيان بعدد الأنشطة شهريًا"]
[null,"القاعة","عدد الأنشطة",null,"القاعة","عدد الأنشطة",null,"القاعة","عدد الأنشطة",null,"القاعة","عدد الأنشطة"]
[null,"الندوات",{"$f":"IFERROR(COUNTIF(Table_122345678910[القاعة],B37),\"\")","v":0},null,"الندوات",{"$f":"IFERROR(COUNTIF(Table_122345678914[القاعة],E37),\"\")","v":0},null,"الندوات",{"$f":"IFERROR(COUNTIF(Table_11[القاعة],H37),\"\")","v":0},null,"الندوات",{"$f":"IFERROR(COUNTIF(Table_12[القاعة],K37),\"\")","v":0}]
[null,"مقرري اللجان",{"$f":"IFERROR(COUNTIF(Table_122345678910[القاعة],B38),\"\")","v":0},null,"مقرري اللجان",{"$f":"IFERROR(COUNTIF(Table_122345678914[القاعة],E38),\"\")","v":0},null,"مقرري اللجان",{"$f":"IFERROR(COUNTIF(Table_11[القاعة],H38),\"\")","v":0},null,"مقرري اللجان",{"$f":"IFERROR(COUNTIF(Table_12[القاعة],K38),\"\")","v":0}]
[null,"الآداب",{"$f":"IFERROR(COUNTIF(Table_122345678910[القاعة],B39),\"\")","v":0},null,"الآداب",{"$f":"IFERROR(COUNTIF(Table_122345678914[القاعة],E39),\"\")","v":0},null,"الآداب",{"$f":"IFERROR(COUNTIF(Table_11[القاعة],H39),\"\")","v":0},null,"الآداب",{"$f":"IFERROR(COUNTIF(Table_12[القاعة],K39),\"\")","v":0}]
[null,"العلوم الاجتماعية",{"$f":"IFERROR(COUNTIF(Table_122345678910[القاعة],B40),\"\")","v":0},null,"العلوم الاجتماعية",{"$f":"IFERROR(COUNTIF(Table_122345678914[القاعة],E40),\"\")","v":0},null,"العلوم الاجتماعية",{"$f":"IFERROR(COUNTIF(Table_11[القاعة],H40),\"\")","v":0},null,"العلوم الاجتماعية",{"$f":"IFERROR(COUNTIF(Table_12[القاعة],K40),\"\")","v":0}]
[null,"القاعة العامة",{"$f":"IFERROR(COUNTIF(Table_122345678910[القاعة],B41),\"\")","v":0},null,"القاعة العامة",{"$f":"IFERROR(COUNTIF(Table_122345678914[القاعة],E41),\"\")","v":0},null,"القاعة العامة",{"$f":"IFERROR(COUNTIF(Table_11[القاعة],H41),\"\")","v":0},null,"القاعة العامة",{"$f":"IFERROR(COUNTIF(Table_12[القاعة],K41),\"\")","v":0}]
[null,"المؤتمرات",{"$f":"IFERROR(COUNTIF(Table_122345678910[القاعة],B42),\"\")","v":0},null,"المؤتمرات",{"$f":"IFERROR(COUNTIF(Table_122345678914[القاعة],E42),\"\")","v":0},null,"المؤتمرات",{"$f":"IFERROR(COUNTIF(Table_11[القاعة],H42),\"\")","v":0},null,"المؤتمرات",{"$f":"IFERROR(COUNTIF(Table_12[القاعة],K42),\"\")","v":0}]
[null,"المجلس",{"$f":"IFERROR(COUNTIF(Table_122345678910[القاعة],B43),\"\")","v":0},null,"المجلس",{"$f":"IFERROR(COUNTIF(Table_122345678914[القاعة],E43),\"\")","v":0},null,"المجلس",{"$f":"IFERROR(COUNTIF(Table_11[القاعة],H43),\"\")","v":0},null,"المجلس",{"$f":"IFERROR(COUNTIF(Table_12[القاعة],K43),\"\")","v":0}]
[null,"الفنون",{"$f":"IFERROR(COUNTIF(Table_122345678910[القاعة],B44),\"\")","v":0},null,"الفنون",{"$f":"IFERROR(COUNTIF(Table_122345678914[القاعة],E44),\"\")","v":0},null,"الفنون",{"$f":"IFERROR(COUNTIF(Table_11[القاعة],H44),\"\")","v":0},null,"الفنون",{"$f":"IFERROR(COUNTIF(Table_12[القاعة],K44),\"\")","v":0}]
[null,"كل القاعات",{"$f":"IFERROR(COUNTIF(Table_122345678910[القاعة],B45),\"\")","v":0},null,"كل القاعات",{"$f":"IFERROR(COUNTIF(Table_122345678914[القاعة],E45),\"\")","v":0},null,"كل القاعات",{"$f":"IFERROR(COUNTIF(Table_11[القاعة],H45),\"\")","v":0},null,"كل القاعات",{"$f":"IFERROR(COUNTIF(Table_12[القاعة],K45),\"\")","v":0}]
[null,"أونلاين",{"$f":"IFERROR(COUNTIF(Table_122345678910[القاعة],B46),\"\")","v":0},null,"أونلاين",{"$f":"IFERROR(COUNTIF(Table_122345678914[القاعة],E46),\"\")","v":0},null,"أونلاين",{"$f":"IFERROR(COUNTIF(Table_11[القاعة],H46),\"\")","v":0},null,"أونلاين",{"$f":"IFERROR(COUNTIF(Table_12[القاعة],K46),\"\")","v":0}]
[null,"أنشطة خارجية",{"$f":"COUNTA(Table_122345678910[القاعة])-SUM($C$37:$C$46)","v":0},null,"أنشطة خارجية",{"$f":"COUNTA(Table_122345678914[القاعة])-SUM($F$37:$F$46)","v":0},null,"أنشطة خارجية",{"$f":"COUNTA(Table_11[القاعة])-SUM($I$37:$I$46)","v":0},null,"أنشطة خارجية",{"$f":"COUNTA(Table_12[القاعة])-SUM($L$37:$L$46)","v":0}]
[null,"إجمالى عدد الأنشطة",{"$f":"SUM(C37:C47)","v":0},null,"إجمالى عدد الأنشطة",{"$f":"SUM(F37:F47)","v":0},null,"إجمالى عدد الأنشطة",{"$f":"SUM(I37:I47)","v":0},null,"إجمالى عدد الأنشطة",{"$f":"SUM(L37:L47)","v":0}]

{"sheet":"Programming Data","index":14,"n_rows":15,"n_cols":3,"rows_kept":15,"cut":false,"hidden":true,"merged":[]}
["9ص","الندوات","يناير"]
["10ص","مقرري اللجان","فبراير"]
["11ص","الآداب","مارس"]
["12م","العلوم الاجتماعية","إبريل"]
["1م","القاعة العامة","مايو"]
["2م","المؤتمرات","يونيو"]
["3م","المجلس","يوليو"]
["4م","الفنون","أغسطس"]
["5م","كل القاعات","سبتمبر"]
["6م","أونلاين","أكتوبر"]
["7م","نشاط خارجي","نوفمبر"]
["8م",null,"ديسمبر"]
["9م"]
["10م"]
["طول اليوم"]